{"text_format":"1","workbook":"xlsx","n_sheets":6,"sheets":["はじめに","名簿シート","チェックシート","計算シート","記録シート","評価シート"],"not_rendered":{"charts":2,"images":0,"macros":1,"external_links":0,"defined_names":3,"comments":0,"pivot_tables":0},"unopened":[],"bounds":{"document_bytes":16777216,"sheet_cells":100000,"rows_first":2000,"rows_last":500,"rows_between":2000,"halvings":0,"cell_chars":16384,"cell_head_chars":4096},"cells_cut":0,"cells_raw":0,"read":"whole","date_system":"1900"}

{"sheet":"はじめに","index":0,"n_rows":35,"n_cols":11,"rows_kept":35,"cut":false,"hidden":false,"merged":[[10,10,11,12]]}
[]
[null,"ストレスチェック　Ｖｅｒ．３　の使い方"]
[]
[null,"この簡易ソフトは、改正労働安全衛生法に定められた指針に従って作成したものです。"]
[null,"このチェックを外注すると、職員一人当たり７～８００円はかかります。"]
[null,"こんなのもったいないので、自分の施設でチェックできるようにして産業医に評価してもらおうと作りました。"]
[]
[null,"試用してみて継続使用を希望される場合は、有償とさせていただきます。"]
[null,"利用料は・・・１施設あたり３０００円とします。（年間）まあ、お気持ちでということで・・・お願いします。"]
[null,"使えたらと言う条件で感謝の気持ちで寄付をする・・・程度で良いですから・・・。",null,null,null,null,null,null,null,null,"lets右クリック！"]
[null,"千葉興業銀行　辰巳台支店　普通５３１８１２１　萬緑苑後援会口　小出浩丸",null,null,null,null,null,null,null,null,"寄付に同意をする"]
[]
[null,"なお、使用にあたっては必ず私にメールかＦＡＸで連絡を願います。（試用期間を除く）"]
[null,"hiromaru@smile.ocn.ne.jp"]
[null,"０４３６－７５－２２５１　ＦＡＸ０４３６－７５－２２５２"]
[null,"〒290-0178　市原市神崎２６３－１　特別養護老人ホーム辰巳萬緑苑"]
[null,"担当：小出浩丸"]
[]
[null,"はじめにおこなうこと"]
[null,"マクロを使用しますので、エクセルのマクロを使用できる状態にして下さい。"]
[null,"詳細はマイクロソフトで以下のページを検索して下さい."]
[]
[null,"設定が終わったら・・・"]
[null,"はじめに、名簿シートの名簿を作成してください。"]
[null,"完了したら、入力開始.右クリックだけで入力は完了します。"]
[null,"結果は、評価シートに出てきますが、職員の平均値を算出していますので、印刷はアンケート終了後に行いましょう。"]
[]
[null,"やってはいけないこと"]
[null,"切り取り・行列の挿入削除・ドラッグ＆ドロップ、フォントサイズ変更、ボタンの文字の変更はしないでください。"]
[null,"また、赤いボタンは気を付けて使用して頂きたいものですのでご注意ください。"]
[null,"わからなかったら辰巳萬緑苑まで連絡してください。"]
[]
[null,"こんなソフトです"]
[null,"２３項目のアンケートに答えることで、自動的に評価シートを作成します。"]
[null,"結果によってセルフケアアドバイスも自動的に作成します。組み合わせパターンは数百通りに及びます。"]

{"sheet":"名簿シート","index":1,"n_rows":204,"n_cols":17,"rows_kept":204,"cut":false,"hidden":true,"merged":[[1,14,1,15],[0,14,0,15],[9,1,9,2],[9,5,9,6],[8,1,8,6],[4,1,5,3],[4,4,5,4],[4,5,5,7],[1,9,1,12],[3,15,8,17],[1,1,1,6]]}
[null,"はじめに名簿（氏名・フリガナ・性別）部分を完成させてください！",null,null,null,null,null,null,"フリガナ順にならべなおします.",null,null,null,null,"削除番号","削除対象者",null,"名前と記録の消去"]
[null,"あなたの名前の左横にある番号を下の欄に入力するか、番号を右クリックして下さい。",null,null,null,null,null,null,"整列","名　簿",null,null,null,null,{"$f":"IF(N2=\"\",\"\",VLOOKUP(N2,J4:N204,2))","v":""},null,"削除"]
[]
[null,null,null,null,null,null,null,null,null,"番号","氏名","フリガナ","性別","同意",null,"名前を削除するときは、かならず削除ボタンで消してください。\nまた、名簿の名前の位置を手動で変えたり、上書きしないでください。\n新規追加は名簿の一番下に加え、整列ボタンを押してください。"]
[null,{"$f":"IF(B3=\"\",\"\",VLOOKUP(B3,J4:N204,2))","v":""},null,null,{"$f":"IF(B3=\"\",\"\",VLOOKUP(B3,J4:N204,4))","v":""},{"$f":"IF(OR(B3=\"\",B5=0),\"\",\"←　間違いありませんか？\")","v":""},null,null,null,{"$f":"ROW()-4","v":1}]
[null,null,null,null,null,null,null,null,null,2]
[null,{"$f":"IF(OR(B3=\"\",B5=0),\"\",\"※間違いがありましたら【名簿表】を訂正して下さい。\")","v":""},null,null,null,null,null,null,null,3]
[null,null,null,null,null,null,null,null,null,4]
[null,{"$f":"IF(OR(B3=\"\",B5=0),\"\",\"ストレスチェック検査に\")","v":""},null,null,null,null,null,null,null,5]
[null,{"$f":"IF(OR(B5=\"\",B5=0),\"\",\"同意します\")","v":""},null,null,null,{"$f":"IF(OR(B5=\"\",B5=0),\"\",\"同意しない\")","v":""},null,null,null,6,null,null,null,null,null,null,"名簿以外の記録を消去"]
[null,null,null,null,null,null,null,null,null,7,null,null,null,null,null,null,"初期化"]
[null,null,null,null,null,null,null,null,null,8]
[null,null,null,null,null,null,null,null,null,9,null,null,null,null,null,null,"名簿と記録の消去"]
[null,null,null,null,null,null,null,null,null,10,null,null,null,null,null,null,"完全初期化"]
[null,null,null,null,null,null,null,null,null,11]
[null,null,null,null,null,null,null,null,null,12,null,null,null,null,null,null,"メンテナンス用"]
[null,null,null,null,null,null,null,null,null,13,null,null,null,null,null,null,"全シート表示"]
[null,null,null,null,null,null,null,null,null,14]
[null,null,null,null,null,null,null,null,null,15,null,null,null,null,null,null,"必要シートのみ表示"]
[null,null,null,null,null,null,null,null,null,16,null,null,null,null,null,null,"隠す"]
[null,null,null,null,null,null,null,null,null,17]
[null,null,null,null,null,null,null,null,null,18]
[null,null,null,null,null,null,null,null,null,19]
[null,null,null,null,null,null,null,null,null,20]
[null,null,null,null,null,null,null,null,null,21]
[null,null,null,null,null,null,null,null,null,22]
[null,null,null,null,null,null,null,null,null,23]
[null,null,null,null,null,null,null,null,null,24]
[null,null,null,null,null,null,null,null,null,25]
[null,null,null,null,null,null,null,null,null,26]
[null,null,null,null,null,null,null,null,null,27]
[null,null,null,null,null,null,null,null,null,28]
[null,null,null,null,null,null,null,null,null,29]
[null,null,null,null,null,null,null,null,null,30]
[null,null,null,null,null,null,null,null,null,31]
[null,null,null,null,null,null,null,null,null,32]
[null,null,null,null,null,null,null,null,null,{"$f":"ROW()-4","v":33}]
[null,null,null,null,null,null,null,null,null,34]
[null,null,null,null,null,null,null,null,null,35]
[null,null,null,null,null,null,null,null,null,36]
[null,null,null,null,null,null,null,null,null,37]
[null,null,null,null,null,null,null,null,null,38]
[null,null,null,null,null,null,null,null,null,39]
[null,null,null,null,null,null,null,null,null,40]
[null,null,null,null,null,null,null,null,null,41]
[null,null,null,null,null,null,null,null,null,42]
[null,null,null,null,null,null,null,null,null,43]
[null,null,null,null,null,null,null,null,null,44]
[null,null,null,null,null,null,null,null,null,45]
[null,null,null,null,null,null,null,null,null,46]
[null,null,null,null,null,null,null,null,null,47]
[null,null,null,null,null,null,null,null,null,48]
[null,null,null,null,null,null,null,null,null,49]
[null,null,null,null,null,null,null,null,null,50]
[null,null,null,null,null,null,null,null,null,51]
[null,null,null,null,null,null,null,null,null,52]
[null,null,null,null,null,null,null,null,null,53]
[null,null,null,null,null,null,null,null,null,54]
[null,null,null,null,null,null,null,null,null,55]
[null,null,null,null,null,null,null,null,null,56]
[null,null,null,null,null,null,null,null,null,57]
[null,null,null,null,null,null,null,null,null,58]
[null,null,null,null,null,null,null,null,null,59]
[null,null,null,null,null,null,null,null,null,60]
[null,null,null,null,null,null,null,null,null,61]
[null,null,null,null,null,null,null,null,null,62]
[null,null,null,null,null,null,null,null,null,63]
[null,null,null,null,null,null,null,null,null,64]
[null,null,null,null,null,null,null,null,null,{"$f":"ROW()-4","v":65}]
[null,null,null,null,null,null,null,null,null,66]
[null,null,null,null,null,null,null,null,null,67]
[null,null,null,null,null,null,null,null,null,68]
[null,null,null,null,null,null,null,null,null,69]
[null,null,null,null,null,null,null,null,null,70]
[null,null,null,null,null,null,null,null,null,71]
[null,null,null,null,null,null,null,null,null,72]
[null,null,null,null,null,null,null,null,null,73]
[null,null,null,null,null,null,null,null,null,74]
[null,null,null,null,null,null,null,null,null,75]
[null,null,null,null,null,null,null,null,null,76]
[null,null,null,null,null,null,null,null,null,77]
[null,null,null,null,null,null,null,null,null,78]
[null,null,null,null,null,null,null,null,null,79]
[null,null,null,null,null,null,null,null,null,80]
[null,null,null,null,null,null,null,null,null,81]
[null,null,null,null,null,null,null,null,null,82]
[null,null,null,null,null,null,null,null,null,83]
[null,null,null,null,null,null,null,null,null,84]
[null,null,null,null,null,null,null,null,null,85]
[null,null,null,null,null,null,null,null,null,86]
[null,null,null,null,null,null,null,null,null,87]
[null,null,null,null,null,null,null,null,null,88]
[null,null,null,null,null,null,null,null,null,89]
[null,null,null,null,null,null,null,null,null,90]
[null,null,null,null,null,null,null,null,null,91]
[null,null,null,null,null,null,null,null,null,92]
[null,null,null,null,null,null,null,null,null,93]
[null,null,null,null,null,null,null,null,null,94]
[null,null,null,null,null,null,null,null,null,95]
[null,null,null,null,null,null,null,null,null,96]
[null,null,null,null,null,null,null,null,null,{"$f":"ROW()-4","v":97}]
[null,null,null,null,null,null,null,null,null,98]
[null,null,null,null,null,null,null,null,null,99]
[null,null,null,null,null,null,null,null,null,100]
[null,null,null,null,null,null,null,null,null,101]
[null,null,null,null,null,null,null,null,null,102]
[null,null,null,null,null,null,null,null,null,103]
[null,null,null,null,null,null,null,null,null,104]
[null,null,null,null,null,null,null,null,null,105]
[null,null,null,null,null,null,null,null,null,106]
[null,null,null,null,null,null,null,null,null,107]
[null,null,null,null,null,null,null,null,null,108]
[null,null,null,null,null,null,null,null,null,109]
[null,null,null,null,null,null,null,null,null,110]
[null,null,null,null,null,null,null,null,null,111]
[null,null,null,null,null,null,null,null,null,112]
[null,null,null,null,null,null,null,null,null,113]
[null,null,null,null,null,null,null,null,null,114]
[null,null,null,null,null,null,null,null,null,115]
[null,null,null,null,null,null,null,null,null,116]
[null,null,null,null,null,null,null,null,null,117]
[null,null,null,null,null,null,null,null,null,118]
[null,null,null,null,null,null,null,null,null,119]
[null,null,null,null,null,null,null,null,null,120]
[null,null,null,null,null,null,null,null,null,121]
[null,null,null,null,null,null,null,null,null,122]
[null,null,null,null,null,null,null,null,null,123]
[null,null,null,null,null,null,null,null,null,124]
[null,null,null,null,null,null,null,null,null,125]
[null,null,null,null,null,null,null,null,null,126]
[null,null,null,null,null,null,null,null,null,127]
[null,null,null,null,null,null,null,null,null,128]
[null,null,null,null,null,null,null,null,null,{"$f":"ROW()-4","v":129}]
[null,null,null,null,null,null,null,null,null,130]
[null,null,null,null,null,null,null,null,null,131]
[null,null,null,null,null,null,null,null,null,132]
[null,null,null,null,null,null,null,null,null,133]
[null,null,null,null,null,null,null,null,null,134]
[null,null,null,null,null,null,null,null,null,135]
[null,null,null,null,null,null,null,null,null,136]
[null,null,null,null,null,null,null,null,null,137]
[null,null,null,null,null,null,null,null,null,138]
[null,null,null,null,null,null,null,null,null,139]
[null,null,null,null,null,null,null,null,null,140]
[null,null,null,null,null,null,null,null,null,141]
[null,null,null,null,null,null,null,null,null,142]
[null,null,null,null,null,null,null,null,null,143]
[null,null,null,null,null,null,null,null,null,144]
[null,null,null,null,null,null,null,null,null,145]
[null,null,null,null,null,null,null,null,null,146]
[null,null,null,null,null,null,null,null,null,147]
[null,null,null,null,null,null,null,null,null,148]
[null,null,null,null,null,null,null,null,null,149]
[null,null,null,null,null,null,null,null,null,150]
[null,null,null,null,null,null,null,null,null,151]
[null,null,null,null,null,null,null,null,null,152]
[null,null,null,null,null,null,null,null,null,153]
[null,null,null,null,null,null,null,null,null,154]
[null,null,null,null,null,null,null,null,null,155]
[null,null,null,null,null,null,null,null,null,156]
[null,null,null,null,null,null,null,null,null,157]
[null,null,null,null,null,null,null,null,null,158]
[null,null,null,null,null,null,null,null,null,159]
[null,null,null,null,null,null,null,null,null,160]
[null,null,null,null,null,null,null,null,null,{"$f":"ROW()-4","v":161}]
[null,null,null,null,null,null,null,null,null,162]
[null,null,null,null,null,null,null,null,null,163]
[null,null,null,null,null,null,null,null,null,164]
[null,null,null,null,null,null,null,null,null,165]
[null,null,null,null,null,null,null,null,null,166]
[null,null,null,null,null,null,null,null,null,167]
[null,null,null,null,null,null,null,null,null,168]
[null,null,null,null,null,null,null,null,null,169]
[null,null,null,null,null,null,null,null,null,170]
[null,null,null,null,null,null,null,null,null,171]
[null,null,null,null,null,null,null,null,null,172]
[null,null,null,null,null,null,null,null,null,173]
[null,null,null,null,null,null,null,null,null,174]
[null,null,null,null,null,null,null,null,null,175]
[null,null,null,null,null,null,null,null,null,176]
[null,null,null,null,null,null,null,null,null,177]
[null,null,null,null,null,null,null,null,null,178]
[null,null,null,null,null,null,null,null,null,179]
[null,null,null,null,null,null,null,null,null,180]
[null,null,null,null,null,null,null,null,null,181]
[null,null,null,null,null,null,null,null,null,182]
[null,null,null,null,null,null,null,null,null,183]
[null,null,null,null,null,null,null,null,null,184]
[null,null,null,null,null,null,null,null,null,185]
[null,null,null,null,null,null,null,null,null,186]
[null,null,null,null,null,null,null,null,null,187]
[null,null,null,null,null,null,null,null,null,188]
[null,null,null,null,null,null,null,null,null,189]
[null,null,null,null,null,null,null,null,null,190]
[null,null,null,null,null,null,null,null,null,191]
[null,null,null,null,null,null,null,null,null,192]
[null,null,null,null,null,null,null,null,null,{"$f":"ROW()-4","v":193}]
[null,null,null,null,null,null,null,null,null,194]
[null,null,null,null,null,null,null,null,null,195]
[null,null,null,null,null,null,null,null,null,196]
[null,null,null,null,null,null,null,null,null,197]
[null,null,null,null,null,null,null,null,null,198]
[null,null,null,null,null,null,null,null,null,199]
[null,null,null,null,null,null,null,null,null,200]

{"sheet":"チェックシート","index":2,"n_rows":48,"n_cols":15,"rows_kept":48,"cut":false,"hidden":true,"merged":[[45,11,45,12],[47,11,48,14],[2,11,2,14],[2,7,2,10]]}
[]
[null,"初期化"]
[null,null,null,"職業性ストレス簡易調査票（簡略版２３項目）",null,null,null,"氏名",null,null,null,{"$f":"IF(名簿シート!B3=\"\",\"\",VLOOKUP(名簿シート!B3,名簿シート!J4:N204,2))","v":""}]
[]
[null,null,"Ａ．あなたの仕事について伺います。もっともあてはまるものを選択（右クリック）してください。"]
[null,null,null,null,null,null,null,null,null,null,null,"そうだ","まあ\nそうだ","やや\nちがう","ちがう"]
[null,null,1,"非常にたくさんの仕事をしなければならない"]
[null,null,2,"時間内に仕事が処理しきれない"]
[null,null,3,"一生懸命働かなければならない"]
[null,null,4,"自分のペースで仕事ができる"]
[null,null,5,"自分で仕事の順番・やり方を決める事ができる"]
[null,null,6,"職場の仕事の方針に自分の意見を反映できる"]
[]
[null,null,"Ｂ．最近１ヶ月間のあなたの状態について伺います。もっともあてはまるものを選択（右クリック）してください。"]
[null,null,null,null,null,null,null,null,null,null,null,"ほとんど\nなかった","ときどき\nあった","しばしば\nあった","ほとんど\nいつも\nあった"]
[null,null,7,"ひどく疲れた"]
[null,null,8,"へとへとだ"]
[null,null,9,"だるい"]
[null,null,10,"気がはりつめている"]
[null,null,11,"不安だ"]
[null,null,12,"落ち着かない"]
[null,null,13,"ゆううつだ"]
[null,null,14,"何をするのも面倒だ"]
[null,null,15,"気分が晴れない"]
[null,null,16,"食欲がない"]
[null,null,17,"よく眠れない"]
[]
[null,null,"Ｃ．あなたのまわりの方々について伺います。もっともあてはまるものを選択（右クリック）してください。"]
[]
[null,null,"次の人たちとはどのくらい気軽に話ができますか？"]
[null,null,null,null,null,null,null,null,null,null,null,"非常に","かなり","多少","全くない"]
[null,null,18,"上司"]
[null,null,19,"職場の同僚"]
[]
[null,null,"あなたが困ったとき、次の人たちはどのくらい頼りになりますか？"]
[null,null,null,null,null,null,null,null,null,null,null,"非常に","かなり","多少","全くない"]
[null,null,20,"上司"]
[null,null,21,"職場の同僚"]
[]
[null,null,"あなたの個人的な問題を相談したら、次の人たちはどのくらい聞いてくれますか？"]
[null,null,null,null,null,null,null,null,null,null,null,"非常に","かなり","多少","全くない"]
[null,null,22,"上司"]
[null,null,23,"職場の同僚"]
[]
[null,null,null,null,null,null,null,null,null,null,null,"入力判定"]
[null,null,null,null,null,null,null,null,null,null,null,"未入力質問",null,{"$f":"COUNTIF(計算シート!BT43:BT44,0)+COUNTIF(計算シート!BT38:BT39,0)+COUNTIF(計算シート!BT33:BT34,0)+COUNTIF(計算シート!BT17:BT27,0)+COUNTIF(計算シート!BT8:BT13,0)","v":23},"ヶ所"]
[]
[null,null,null,null,null,null,null,null,null,null,null,{"$f":"IF(計算シート!BT49>0,\"このボタンを右クリックして下さい！\",\"\")","v":""}]

{"sheet":"計算シート","index":3,"n_rows":53,"n_cols":99,"rows_kept":53,"cut":false,"hidden":true,"merged":[[9,94,9,95],[42,79,42,80],[15,88,15,91],[6,88,6,91],[30,88,31,91],[30,92,31,92],[21,15,21,16],[22,15,22,16],[23,15,23,16],[24,15,24,16],[25,15,25,16],[28,5,28,6],[29,5,29,6],[7,11,7,12],[6,11,6,12],[6,1,7,8],[1,44,1,45],[1,46,1,67],[1,25,1,29],[1,30,1,31],[1,32,1,33],[1,34,1,38],[1,39,1,43]]}
[null,null,null,null,null,null,null,null,null,null,null,null,null,null,null,null,null,null,null,null,null,1,2,3,4,5,6,7,8,9,10,11,12,13,14,15,16,17,18,19,20,21,22,23,24,25,26,27,28,29,30,31,32,33,34,35,36,37,38,39,40,41,42,43,44,45,46,47,48,49]
[null,null,null,null,null,null,null,null,null,null,null,null,null,null,null,null,null,null,null,null,null,"基本情報",null,null,null,"【心身のストレス反応に関する項目】",null,null,null,null,"【仕事のストレスの要因に関する項目】",null,"【周囲のサポートに関する項目】",null,"評価基準１による計算",null,null,null,null,"評価基準２による計算",null,null,null,null,"判定",null,"入力内容"]
[null,null,null,null,null,null,null,null,null,null,null,null,null,null,null,null,null,null,null,null,null,"番号","氏名","フリガナ","日付","疲労感","不安感","抑うつ感","食欲不振","不眠","心理的な仕事の負担","仕事のコントロール度","上司からのサポート","同僚からのサポート","Ａ","Ｂ","Ｃ","Ｂ＋Ｃ","Ａ＋Ｂ＋Ｃ","Ａ","Ｂ","Ｃ","Ｂ＋Ｃ","Ａ＋Ｂ＋Ｃ",{"$f":"B29","v":"評価基準１による判定"},{"$f":"B30","v":"評価基準２による判定"},"性別","非常にたくさんの仕事をしなければならない","時間内に仕事が処理しきれない","一生懸命働かなければならない","自分のペースで仕事ができる","自分で仕事の順番・やり方を決める事ができる","職場の仕事の砲身に自分の意見を反映できる","ひどく疲れた","へとへとだ","だるい","気がはりつめている","不安だ","落ち着かない","ゆううつだ","何をするのも面倒だ","気分が晴れない","食欲がない","よく眠れない","上司","職場の同僚","上司","職場の同僚","上司","職場の同僚"]
[null,null,null,null,null,null,null,null,null,null,null,null,null,null,null,null,null,null,null,null,null,{"$f":"名簿シート!$B$3","v":0},{"$f":"$L$8","v":""},{"$f":"VLOOKUP($V$4,名簿シート!$J$4:$N$204,3)","v":{"$error":"#N/A"}},{"$f":"$L$7","v":"2016-09-14T00:23:41.930"},{"$f":"$W$10","v":{"$error":"#N/A"}},{"$f":"$W$11","v":{"$error":"#N/A"}},{"$f":"$W$12","v":{"$error":"#N/A"}},{"$f":"$W$13","v":{"$error":"#N/A"}},{"$f":"$W$14","v":{"$error":"#N/A"}},{"$f":"$W$18","v":{"$error":"#N/A"}},{"$f":"$W$19","v":{"$error":"#N/A"}},{"$f":"$W$20","v":{"$error":"#N/A"}},{"$f":"$W$21","v":{"$error":"#N/A"}},{"$f":"$L$11","v":0},{"$f":"$L$12","v":0},{"$f":"$L$13","v":0},{"$f":"$L$14","v":0},{"$f":"$L$15","v":0},{"$f":"$L$20","v":{"$error":"#N/A"}},{"$f":"$L$21","v":{"$error":"#N/A"}},{"$f":"$L$22","v":{"$error":"#N/A"}},{"$f":"$L$23","v":{"$error":"#N/A"}},{"$f":"$L$24","v":{"$error":"#N/A"}},{"$f":"$F$29","v":"-"},{"$f":"$F$30","v":{"$error":"#N/A"}},{"$f":"計算シート!$CB$6","v":{"$error":"#N/A"}},{"$f":"計算シート!$BT$8","v":0},{"$f":"計算シート!$BT$9","v":0},{"$f":"計算シート!$BT$10","v":0},{"$f":"計算シート!$BT$11","v":0},{"$f":"計算シート!$BT$12","v":0},{"$f":"計算シート!$BT$13","v":0},{"$f":"計算シート!$BT$17","v":0},{"$f":"計算シート!$BT$18","v":0},{"$f":"計算シート!$BT$19","v":0},{"$f":"計算シート!$BT$20","v":0},{"$f":"計算シート!$BT$21","v":0},{"$f":"計算シート!$BT$22","v":0},{"$f":"計算シート!$BT$23","v":0},{"$f":"計算シート!$BT$24","v":0},{"$f":"計算シート!$BT$25","v":0},{"$f":"計算シート!$BT$26","v":0},{"$f":"計算シート!$BT$27","v":0},{"$f":"計算シート!$BT$33","v":0},{"$f":"計算シート!BT34","v":0},{"$f":"計算シート!BT38","v":0},{"$f":"計算シート!BT39","v":0},{"$f":"計算シート!BT43","v":0},{"$f":"計算シート!BT44","v":0}]
[null,null,null,null,null,null,null,null,null,null,null,null,null,null,null,null,null,null,null,null,null,null,null,null,null,null,null,null,null,null,null,null,null,null,null,null,null,null,null,null,null,null,null,null,null,null,null,null,null,null,null,null,null,null,null,null,null,null,null,null,null,null,null,null,null,null,null,null,null,null,null,null,null,null,null,null,null,null,null,null,null,null,"評価基準２による配点"]
[null,null,null,null,null,null,null,null,null,null,null,null,null,null,null,null,null,null,null,null,null,null,null,null,null,null,null,null,null,null,null,null,null,null,null,null,null,null,null,null,null,null,null,null,null,null,null,null,null,null,null,null,null,null,null,null,null,null,null,null,null,null,null,null,null,null,null,null,null,null,null,null,null,null,null,null,null,null,"性別",{"$f":"VLOOKUP(名簿シート!B3,名簿シート!J4:N204,4)","v":{"$error":"#N/A"}},null,null,5,4,3,2,1,null,"評価基準１による配点",null,null,null,{"$f":"CK7","v":"【仕事のストレス要因】"},null,null,{"$f":"CK31","v":"【周囲からのサポート】"}]
[null,"ストレスチェックの結果通知書",null,null,null,null,null,null,null,null,null,{"$f":"NOW()","v":"2016-09-14T00:23:41.930"},null,null,{"$f":"評価シート!B10","v":"【心身に感じている負担感・ストレス】"},null,null,null,null,null,null,null,null,null,null,null,null,null,null,null,null,null,null,null,null,null,null,null,null,null,null,null,null,null,null,null,null,null,null,null,null,null,null,null,null,null,null,null,null,null,null,null,null,null,null,null,null,null,null,null,null,null,"枝番号",null,"【ストレスの原因と考えられる因子】",null,null,null,null,null,null,null,"低い／\n少ない","やや低い\n／少ない","普通","やや高い\n／多い","高い／\n多い",null,"【仕事のストレス要因】",null,null,null,"採点",{"$f":"SUM(CO8:CO13)","v":0},"＋",{"$f":"SUM(CO33:CO44)","v":0},"＝",{"$f":"CP7+CR7","v":0},"合計３９点以上であり、かつ心身のストレス反応が２３点以上は高ストレス"]
[null,null,null,null,null,null,null,null,null,null,"氏名",{"$f":"チェックシート!L3","v":""},null,null,null,"あなたの評価","職員平均","最大値","コメント",null,null,null,null,null,null,null,null,null,null,null,null,null,null,null,"評価",null,null,null,null,null,null,null,null,null,null,null,null,null,null,null,null,null,null,null,null,null,null,null,null,null,null,null,null,null,null,null,null,null,null,null,null,{"$f":"IF(チェックシート!L7=\"〇\",1,IF(チェックシート!M7=\"〇\",2,IF(チェックシート!N7=\"〇\",3,IF(チェックシート!O7=\"〇\",4,0))))","v":0},1,null,"心理的な仕事の負担",null,"判定",null,"男","女",null,"男","ー",6,8,10,12,null,4,3,2,1,{"$f":"IF(チェックシート!L7=\"〇\",CK8,IF(チェックシート!M7=\"〇\",CL8,IF(チェックシート!N7=\"〇\",CM8,IF(チェックシート!O7=\"〇\",CN8,0))))","v":0}]
[null,null,null,null,null,null,null,null,null,null,null,null,null,null,{"$f":"評価シート!B11","v":"疲労感"},{"$f":"IF(評価シート!$B$3=\"\",\"\",6-VLOOKUP(評価シート!$B$3,記録シート!$B$5:$AV$205,5))","v":6},{"$f":"記録シート!F1","v":0},5,{"$f":"IF(P9>=4,O9,\"\")","v":"疲労感"},{"$f":"IF(S9=\"\",\"\",IF(COUNTBLANK(S10:S20)=11,\"に\",\"と\"))","v":"と"},null,{"$f":"B10","v":"【心身のストレス反応に関する項目】"},"あなたの評価","職員平均",null,null,null,null,null,null,null,null,null,null,{"$f":"IF(評価シート!$B$3=\"\",\"\",VLOOKUP(評価シート!$B$3,記録シート!$B$5:$AW$205,27))","v":0},null,null,null,null,null,null,null,null,null,null,null,null,null,null,null,null,null,null,null,null,null,null,null,null,null,null,null,null,null,null,null,null,null,null,null,null,{"$f":"IF(チェックシート!L8=\"〇\",1,IF(チェックシート!M8=\"〇\",2,IF(チェックシート!N8=\"〇\",3,IF(チェックシート!O8=\"〇\",4,0))))","v":0},2,null,{"$f":"15-SUM(BT8:BT10)","v":15},null,{"$f":"IF($CB$6=\"男\",CA9,CB9)","v":{"$error":"#N/A"}},null,{"$f":"IF(BW9>=CI8,1,IF(BW9>=CH8,2,IF(BW9>=CG8,3,IF(BW9>=CF8,4,5))))","v":1},{"$f":"IF(BW9>=CI9,1,IF(BW9>=CH9,2,IF(BW9>=CG9,3,IF(BW9>=CF9,4,5))))","v":1},null,"女","ー",5,7,10,12,null,4,3,2,1,{"$f":"IF(チェックシート!L8=\"〇\",CK9,IF(チェックシート!M8=\"〇\",CL9,IF(チェックシート!N8=\"〇\",CM9,IF(チェックシート!O8=\"〇\",CN9,0))))","v":0},null,"評価基準１による判定"]
[null,"【心身のストレス反応に関する項目】",null,null,null,"ストレス",null,"評価基準１による計算",null,null,null,null,null,null,{"$f":"評価シート!B12","v":"不安感"},{"$f":"IF(評価シート!$B$3=\"\",\"\",6-VLOOKUP(評価シート!$B$3,記録シート!$B$5:$AV$205,6))","v":6},{"$f":"記録シート!G1","v":0},5,{"$f":"IF(P10>=4,O10,\"\")","v":"不安感"},{"$f":"IF(S10=\"\",\"\",IF(COUNTBLANK(S11:S20)=10,\"に\",\"と\"))","v":"と"},null,"疲労感",{"$f":"計算シート!BY18","v":{"$error":"#N/A"}},3,null,null,null,null,null,null,null,null,null,null,{"$f":"IF(評価シート!$B$3=\"\",\"\",VLOOKUP(評価シート!$B$3,記録シート!$B$5:$AW$205,28))","v":0},null,null,null,null,null,null,null,null,null,null,null,null,null,null,null,null,null,null,null,null,null,null,null,null,null,null,null,null,null,null,null,null,null,null,null,null,{"$f":"IF(チェックシート!L9=\"〇\",1,IF(チェックシート!M9=\"〇\",2,IF(チェックシート!N9=\"〇\",3,IF(チェックシート!O9=\"〇\",4,0))))","v":0},3,null,"仕事のコントロール度",null,"判定",null,"男","女",null,"男",4,6,8,10,"ー",null,4,3,2,1,{"$f":"IF(チェックシート!L9=\"〇\",CK10,IF(チェックシート!M9=\"〇\",CL10,IF(チェックシート!N9=\"〇\",CM10,IF(チェックシート!O9=\"〇\",CN10,0))))","v":0},null,{"$f":"IF(CP16>=31,\"高ストレス状態\",IF(AND(CT7>=39,CP16>=23),\"高ストレス状態\",\"-\"))","v":"-"}]
[null,"疲労感",null,null,null,{"$f":"VLOOKUP(計算シート!BY18,K49:L53,2)","v":{"$error":"#N/A"}},null,"Ａ","【心身のストレス反応】",null,null,{"$f":"計算シート!CP16","v":0},"点",null,{"$f":"評価シート!B13","v":"抑うつ感"},{"$f":"IF(評価シート!$B$3=\"\",\"\",6-VLOOKUP(評価シート!$B$3,記録シート!$B$5:$AV$205,7))","v":6},{"$f":"記録シート!H1","v":0},5,"抑うつ感",{"$f":"IF(S11=\"\",\"\",IF(COUNTBLANK(S12:S20)=9,\"に\",\"と\"))","v":"と"},null,"不安感",{"$f":"計算シート!BY20","v":{"$error":"#N/A"}},3,null,null,null,null,null,null,null,null,null,null,{"$f":"IF(評価シート!$B$3=\"\",\"\",VLOOKUP(評価シート!$B$3,記録シート!$B$5:$AW$205,29))","v":0},null,null,null,null,null,null,null,null,null,null,null,null,null,null,null,null,null,null,null,null,null,null,null,null,null,null,null,null,null,null,null,null,null,null,null,null,{"$f":"IF(チェックシート!L10=\"〇\",1,IF(チェックシート!M10=\"〇\",2,IF(チェックシート!N10=\"〇\",3,IF(チェックシート!O10=\"〇\",4,0))))","v":0},8,null,{"$f":"15-SUM(BT11:BT13)","v":15},null,{"$f":"IF($CB$6=\"男\",CA11,CB11)","v":{"$error":"#N/A"}},null,{"$f":"IF(BW11<=CE10,1,IF(BW11<=CF10,2,IF(BW11<=CG10,3,IF(BW11<=CH10,4,5))))","v":5},{"$f":"IF(BW11<=CE11,1,IF(BW11<=CF11,2,IF(BW11<=CG11,3,IF(BW11<=CH11,4,5))))","v":5},null,"女",3,5,8,10,"ー",null,1,2,3,4,{"$f":"IF(チェックシート!L10=\"〇\",CK11,IF(チェックシート!M10=\"〇\",CL11,IF(チェックシート!N10=\"〇\",CM11,IF(チェックシート!O10=\"〇\",CN11,0))))","v":0}]
[null,"不安感",null,null,null,{"$f":"VLOOKUP(計算シート!BY20,K49:L53,2)","v":{"$error":"#N/A"}},null,"Ｂ","【仕事のストレス要因】",null,null,{"$f":"計算シート!CP7","v":0},"点",null,{"$f":"評価シート!B14","v":"食欲不振"},{"$f":"IF(評価シート!$B$3=\"\",\"\",6-VLOOKUP(評価シート!$B$3,記録シート!$B$5:$AV$205,8))","v":6},{"$f":"記録シート!I1","v":0},5,"食欲不振",{"$f":"IF(S12=\"\",\"\",IF(COUNTBLANK(S13:S20)=8,\"に\",\"と\"))","v":"と"},null,"抑うつ感",{"$f":"計算シート!BY22","v":{"$error":"#N/A"}},3,null,null,null,null,null,null,null,null,null,null,{"$f":"IF(評価シート!$B$3=\"\",\"\",VLOOKUP(評価シート!$B$3,記録シート!$B$5:$AW$205,30))","v":0},null,null,null,null,null,null,null,null,null,null,null,null,null,null,null,null,null,null,null,null,null,null,null,null,null,null,null,null,null,null,null,null,null,null,null,null,{"$f":"IF(チェックシート!L11=\"〇\",1,IF(チェックシート!M11=\"〇\",2,IF(チェックシート!N11=\"〇\",3,IF(チェックシート!O11=\"〇\",4,0))))","v":0},9,null,null,null,null,null,null,null,null,null,null,null,null,null,null,null,1,2,3,4,{"$f":"IF(チェックシート!L11=\"〇\",CK12,IF(チェックシート!M11=\"〇\",CL12,IF(チェックシート!N11=\"〇\",CM12,IF(チェックシート!O11=\"〇\",CN12,0))))","v":0}]
[null,"抑うつ感",null,null,null,{"$f":"VLOOKUP(計算シート!BY22,K49:L53,2)","v":{"$error":"#N/A"}},null,"Ｃ","【周囲からのサポート】",null,null,{"$f":"計算シート!CR7","v":0},"点",null,{"$f":"評価シート!B15","v":"不眠"},{"$f":"IF(評価シート!$B$3=\"\",\"\",6-VLOOKUP(評価シート!$B$3,記録シート!$B$5:$AV$205,9))","v":6},{"$f":"記録シート!J1","v":0},5,"不眠",{"$f":"IF(S13=\"\",\"\",IF(COUNTBLANK(S14:S20)=7,\"に\",\"と\"))","v":"と"},null,"食欲不振",{"$f":"計算シート!BY24","v":{"$error":"#N/A"}},3,null,null,null,null,null,null,null,null,null,null,{"$f":"IF(評価シート!$B$3=\"\",\"\",VLOOKUP(評価シート!$B$3,記録シート!$B$5:$AW$205,31))","v":0},null,null,null,null,null,null,null,null,null,null,null,null,null,null,null,null,null,null,null,null,null,null,null,null,null,null,null,null,null,null,null,null,null,null,null,null,{"$f":"IF(チェックシート!L12=\"〇\",1,IF(チェックシート!M12=\"〇\",2,IF(チェックシート!N12=\"〇\",3,IF(チェックシート!O12=\"〇\",4,0))))","v":0},10,null,null,null,null,null,null,null,null,null,null,null,null,null,null,null,1,2,3,4,{"$f":"IF(チェックシート!L12=\"〇\",CK13,IF(チェックシート!M12=\"〇\",CL13,IF(チェックシート!N12=\"〇\",CM13,IF(チェックシート!O12=\"〇\",CN13,0))))","v":0}]
[null,"食欲不振",null,null,null,{"$f":"VLOOKUP(計算シート!BY24,K49:L53,2)","v":{"$error":"#N/A"}},null,null,"Ｂ＋Ｃ",null,null,{"$f":"L12+L13","v":0},"点",null,null,null,null,null,null,null,null,"不眠",{"$f":"計算シート!BY26","v":{"$error":"#N/A"}},3,null,null,null,null,null,null,null,null,null,null,{"$f":"IF(評価シート!$B$3=\"\",\"\",VLOOKUP(評価シート!$B$3,記録シート!$B$5:$AW$205,32))","v":0},null,null,null,null,null,null,null,null,null,null,null,null,null,null,null,null,null,null,null,null,null,null,null,null,null,null,null,null,null,null,null,null,null,null,null,null,{"$f":"PRODUCT(BT8:BT13)","v":0},"入力判定"]
[null,"不眠",null,null,null,{"$f":"VLOOKUP(計算シート!BY26,K49:L53,2)","v":{"$error":"#N/A"}},null,null,"Ａ＋Ｂ＋Ｃ",null,null,{"$f":"SUM(L11:L13)","v":0},"点",null,{"$f":"評価シート!B18","v":"【仕事において感じる負担感・ストレス】"},null,null,null,null,null,null,null,null,null,null,null,null,null,null,null,null,null,null,null,null,null,null,null,null,null,null,null,null,null,null,null,null,null,null,null,null,null,null,null,null,null,null,null,null,null,null,null,null,null,null,null,null,null,null,null,null,null,null,null,null,null,null,null,null,null,null,null,null,null,null,null,null,null,null,null,null,null,null,{"$f":"CK16","v":"【心身のストレス反応】"}]
[null,null,null,null,null,null,null,"条件１",null,"Ａが３１点以上",null,null,null,null,null,"あなたの評価","職員平均","最大値",null,null,null,{"$f":"B18","v":"【仕事のストレスの要因に関する項目】"},null,null,null,null,null,null,null,null,null,null,null,null,null,null,null,null,null,null,null,null,null,null,null,null,null,null,null,null,null,null,null,null,null,null,null,null,null,null,null,null,null,null,null,null,null,null,null,null,null,null,null,null,"【ストレスによっておこる心身の反応】",null,null,null,null,"採点",{"$f":"BY18+BY20+BY22+BY24+BY26","v":{"$error":"#N/A"}},"１１点以下は高ストレス",null,null,null,null,null,null,"【心身のストレス反応】",null,null,null,"採点",{"$f":"SUM(CO17:CO27)","v":0},"３１点以上は高ストレス"]
[null,null,null,null,null,null,null,"条件２",null,"Ａが２３点以上、かつＢ＋Ｃが３９点以上",null,null,null,null,{"$f":"評価シート!B19","v":"心理的な仕事の負担"},{"$f":"IF(評価シート!$B$3=\"\",\"\",6-VLOOKUP(評価シート!$B$3,記録シート!$B$5:$AV$205,10))","v":6},{"$f":"記録シート!K1","v":0},5,{"$f":"IF(P17>=4,O17,\"\")","v":"心理的な仕事の負担"},{"$f":"IF(S17=\"\",\"\",IF(COUNTBLANK(S18:S20)=3,\"に\",\"と\"))","v":"と"},null,{"$f":"B23","v":"【周囲のサポートに関する項目】"},"あなたの評価","職員平均",null,null,null,null,null,null,null,null,null,null,null,null,null,null,null,null,null,null,null,null,null,null,null,null,null,null,null,null,null,null,null,null,null,null,null,null,null,null,null,null,null,null,null,null,null,null,null,{"$f":"IF(チェックシート!L16=\"〇\",1,IF(チェックシート!M16=\"〇\",2,IF(チェックシート!N16=\"〇\",3,IF(チェックシート!O16=\"〇\",4,0))))","v":0},7,null,"疲労感",null,"判定",null,"男","女",null,"男","ー",4,5,8,11,null,1,2,3,4,{"$f":"IF(チェックシート!L16=\"〇\",CK17,IF(チェックシート!M16=\"〇\",CL17,IF(チェックシート!N16=\"〇\",CM17,IF(チェックシート!O16=\"〇\",CN17,0))))","v":0}]
[null,"【仕事のストレスの要因に関する項目】",null,null,null,"ストレス",null,null,null,null,null,null,null,null,{"$f":"評価シート!B24","v":"上司との対話不足"},{"$f":"IF(評価シート!$B$3=\"\",\"\",6-VLOOKUP(評価シート!$B$3,記録シート!$B$5:$AV$205,12))","v":6},{"$f":"記録シート!M1","v":0},5,"上司との対話不足",{"$f":"IF(S18=\"\",\"\",IF(COUNTBLANK(S19:S20)=2,\"に\",\"と\"))","v":"と"},null,{"$f":"B19","v":"心理的な仕事の負担"},{"$f":"計算シート!BY9","v":{"$error":"#N/A"}},3,null,null,null,null,null,null,null,null,null,null,null,null,null,null,null,null,null,null,null,null,null,null,null,null,null,null,null,null,null,null,null,null,null,null,null,null,null,null,null,null,null,null,null,null,null,null,null,{"$f":"IF(チェックシート!L17=\"〇\",1,IF(チェックシート!M17=\"〇\",2,IF(チェックシート!N17=\"〇\",3,IF(チェックシート!O17=\"〇\",4,0))))","v":0},8,null,{"$f":"SUM(BT17:BT19)","v":0},null,{"$f":"IF($CB$6=\"男\",CA18,CB18)","v":{"$error":"#N/A"}},null,{"$f":"IF(BW18>=CI17,1,IF(BW18>=CH17,2,IF(BW18>=CG17,3,IF(BW18>=CF17,4,5))))","v":5},{"$f":"IF(BW18>=CI18,1,IF(BW18>=CH18,2,IF(BW18>=CG18,3,IF(BW18>=CF18,4,5))))","v":5},null,"女","ー",4,6,9,12,null,1,2,3,4,{"$f":"IF(チェックシート!L17=\"〇\",CK18,IF(チェックシート!M17=\"〇\",CL18,IF(チェックシート!N17=\"〇\",CM18,IF(チェックシート!O17=\"〇\",CN18,0))))","v":0}]
[null,"心理的な仕事の負担",null,null,null,{"$f":"VLOOKUP(計算シート!BY9,K49:L53,2)","v":{"$error":"#N/A"}},null,"評価基準２による計算",null,null,null,null,null,null,{"$f":"評価シート!B20","v":"仕事の調整面の負担"},{"$f":"IF(評価シート!$B$3=\"\",\"\",6-VLOOKUP(評価シート!$B$3,記録シート!$B$5:$AV$205,11))","v":6},{"$f":"記録シート!L1","v":0},5,"仕事の調整面の負担",{"$f":"IF(S19=\"\",\"\",IF(COUNTBLANK(S19:S20)=1,\"に\",\"と\"))","v":"と"},null,{"$f":"B20","v":"仕事のコントロール度"},{"$f":"計算シート!BY11","v":{"$error":"#N/A"}},3,null,null,null,null,null,null,null,null,null,null,{"$f":"IF(評価シート!$B$3=\"\",\"\",VLOOKUP(評価シート!$B$3,記録シート!$B$5:$AW$205,33))","v":0},null,null,null,null,null,null,null,null,null,null,null,null,null,null,null,null,null,null,null,null,null,null,null,null,null,null,null,null,null,null,null,null,null,null,null,null,{"$f":"IF(チェックシート!L18=\"〇\",1,IF(チェックシート!M18=\"〇\",2,IF(チェックシート!N18=\"〇\",3,IF(チェックシート!O18=\"〇\",4,0))))","v":0},9,null,"不安感",null,"判定",null,"男","女",null,"男","ー",4,5,8,10,null,1,2,3,4,{"$f":"IF(チェックシート!L18=\"〇\",CK19,IF(チェックシート!M18=\"〇\",CL19,IF(チェックシート!N18=\"〇\",CM19,IF(チェックシート!O18=\"〇\",CN19,0))))","v":0}]
[null,"仕事のコントロール度",null,null,null,{"$f":"VLOOKUP(計算シート!BY11,K49:L53,2)","v":{"$error":"#N/A"}},null,"Ａ","【心身のストレス反応】",null,null,{"$f":"計算シート!BW43","v":{"$error":"#N/A"}},"点",null,{"$f":"評価シート!B25","v":"同僚との対話不足"},{"$f":"IF(評価シート!$B$3=\"\",\"\",6-VLOOKUP(評価シート!$B$3,記録シート!$B$5:$AV$205,13))","v":6},{"$f":"記録シート!N1","v":0},5,"同僚との対話不足",{"$f":"IF(S20=\"\",\"\",\"に\")","v":"に"},null,{"$f":"B24","v":"上司からのサポート"},{"$f":"計算シート!BY34","v":{"$error":"#N/A"}},3,null,null,null,null,null,null,null,null,null,null,{"$f":"IF(評価シート!$B$3=\"\",\"\",VLOOKUP(評価シート!$B$3,記録シート!$B$5:$AW$205,34))","v":0},null,null,null,null,null,null,null,null,null,null,null,null,null,null,null,null,null,null,null,null,null,null,null,null,null,null,null,null,null,null,null,null,null,null,null,null,{"$f":"IF(チェックシート!L19=\"〇\",1,IF(チェックシート!M19=\"〇\",2,IF(チェックシート!N19=\"〇\",3,IF(チェックシート!O19=\"〇\",4,0))))","v":0},10,null,{"$f":"SUM(BT20:BT22)","v":0},null,{"$f":"IF($CB$6=\"男\",CA20,CB20)","v":{"$error":"#N/A"}},null,{"$f":"IF(BW20>=CI19,1,IF(BW20>=CH19,2,IF(BW20>=CG19,3,IF(BW20>=CF19,4,5))))","v":5},{"$f":"IF(BW20>=CI20,1,IF(BW20>=CH20,2,IF(BW20>=CG20,3,IF(BW20>=CF20,4,5))))","v":5},null,"女","ー",4,5,8,11,null,1,2,3,4,{"$f":"IF(チェックシート!L19=\"〇\",CK20,IF(チェックシート!M19=\"〇\",CL20,IF(チェックシート!N19=\"〇\",CM20,IF(チェックシート!O19=\"〇\",CN20,0))))","v":0}]
[null,null,null,null,null,null,null,"Ｂ","【仕事のストレス要因】",null,null,{"$f":"計算シート!BW46","v":{"$error":"#N/A"}},"点",null,null,null,null,null,{"$f":"S9&T9&S10&T10&S11&T11&S12&T12&S13&T13&S17&T17&S18&T18&S19&T19&S20&T20","v":"疲労感と不安感と抑うつ感と食欲不振と不眠と心理的な仕事の負担と上司との対話不足と仕事の調整面の負担と同僚との対話不足に"},null,null,{"$f":"B25","v":"同僚からのサポート"},{"$f":"計算シート!BY39","v":{"$error":"#N/A"}},3,null,null,null,null,null,null,null,null,null,null,{"$f":"IF(評価シート!$B$3=\"\",\"\",VLOOKUP(評価シート!$B$3,記録シート!$B$5:$AW$205,35))","v":0},null,null,null,null,null,null,null,null,null,null,null,null,null,null,null,null,null,null,null,null,null,null,null,null,null,null,null,null,null,null,null,null,null,null,null,null,{"$f":"IF(チェックシート!L20=\"〇\",1,IF(チェックシート!M20=\"〇\",2,IF(チェックシート!N20=\"〇\",3,IF(チェックシート!O20=\"〇\",4,0))))","v":0},11,null,"抑うつ感",null,"判定",null,"男","女",null,"男","ー",4,5,7,10,null,1,2,3,4,{"$f":"IF(チェックシート!L20=\"〇\",CK21,IF(チェックシート!M20=\"〇\",CL21,IF(チェックシート!N20=\"〇\",CM21,IF(チェックシート!O20=\"〇\",CN21,0))))","v":0}]
[null,null,null,null,null,null,null,"Ｃ","【周囲からのサポート】",null,null,{"$f":"計算シート!BW49","v":{"$error":"#N/A"}},"点",null,1,"高い／多い",null,null,null,null,null,null,null,null,null,null,null,null,null,null,null,null,null,null,{"$f":"IF(評価シート!$B$3=\"\",\"\",VLOOKUP(評価シート!$B$3,記録シート!$B$5:$AW$205,36))","v":0},null,null,null,null,null,null,null,null,null,null,null,null,null,null,null,null,null,null,null,null,null,null,null,null,null,null,null,null,null,null,null,null,null,null,null,null,{"$f":"IF(チェックシート!L21=\"〇\",1,IF(チェックシート!M21=\"〇\",2,IF(チェックシート!N21=\"〇\",3,IF(チェックシート!O21=\"〇\",4,0))))","v":0},12,null,{"$f":"SUM(BT23:BT25)","v":0},null,{"$f":"IF($CB$6=\"男\",CA22,CB22)","v":{"$error":"#N/A"}},null,{"$f":"IF(BW22>=CI21,1,IF(BW22>=CH21,2,IF(BW22>=CG21,3,IF(BW22>=CF21,4,5))))","v":5},{"$f":"IF(BW22>=CI22,1,IF(BW22>=CH22,2,IF(BW22>=CG22,3,IF(BW22>=CF22,4,5))))","v":5},null,"女","ー",4,5,7,11,null,1,2,3,4,{"$f":"IF(チェックシート!L21=\"〇\",CK22,IF(チェックシート!M21=\"〇\",CL22,IF(チェックシート!N21=\"〇\",CM22,IF(チェックシート!O21=\"〇\",CN22,0))))","v":0}]
[null,"【周囲のサポートに関する項目】",null,null,null,"ストレス",null,null,"Ｂ＋Ｃ",null,null,{"$f":"L21+L22","v":{"$error":"#N/A"}},"点",null,2,"やや高い／多い",null,null,null,null,null,null,null,null,null,null,null,null,null,null,null,null,null,null,{"$f":"IF(評価シート!$B$3=\"\",\"\",VLOOKUP(評価シート!$B$3,記録シート!$B$5:$AW$205,37))","v":0},null,null,null,null,null,null,null,null,null,null,null,null,null,null,null,null,null,null,null,null,null,null,null,null,null,null,null,null,null,null,null,null,null,null,null,null,{"$f":"IF(チェックシート!L22=\"〇\",1,IF(チェックシート!M22=\"〇\",2,IF(チェックシート!N22=\"〇\",3,IF(チェックシート!O22=\"〇\",4,0))))","v":0},13,null,"食欲不振",null,"判定",null,"男","女",null,"男",1,"ー",2,3,4,null,1,2,3,4,{"$f":"IF(チェックシート!L22=\"〇\",CK23,IF(チェックシート!M22=\"〇\",CL23,IF(チェックシート!N22=\"〇\",CM23,IF(チェックシート!O22=\"〇\",CN23,0))))","v":0}]
[null,"上司からのサポート",null,null,null,{"$f":"VLOOKUP(計算シート!BY34,K49:L53,2)","v":{"$error":"#N/A"}},null,null,"Ａ＋Ｂ＋Ｃ",null,null,{"$f":"SUM(L20:L22)","v":{"$error":"#N/A"}},"点",null,3,"普通",null,null,null,null,null,null,null,null,null,null,null,null,null,null,null,null,null,null,{"$f":"IF(評価シート!$B$3=\"\",\"\",VLOOKUP(評価シート!$B$3,記録シート!$B$5:$AW$205,38))","v":0},null,null,null,null,null,null,null,null,null,null,null,null,null,null,null,null,null,null,null,null,null,null,null,null,null,null,null,null,null,null,null,null,null,null,null,null,{"$f":"IF(チェックシート!L23=\"〇\",1,IF(チェックシート!M23=\"〇\",2,IF(チェックシート!N23=\"〇\",3,IF(チェックシート!O23=\"〇\",4,0))))","v":0},14,null,{"$f":"BT26","v":0},null,{"$f":"IF($CB$6=\"男\",CA24,CB24)","v":{"$error":"#N/A"}},null,{"$f":"IF(BW24>=CI23,1,IF(BW24>=CH23,2,IF(BW24>=CG23,3,IF(BW24>=CE23,5,5))))","v":5},{"$f":"IF(BW24>=CI24,1,IF(BW24>=CH24,2,IF(BW24>=CG24,3,IF(BW24>=CE24,5,5))))","v":5},null,"女",1,"ー",2,3,4,null,1,2,3,4,{"$f":"IF(チェックシート!L23=\"〇\",CK24,IF(チェックシート!M23=\"〇\",CL24,IF(チェックシート!N23=\"〇\",CM24,IF(チェックシート!O23=\"〇\",CN24,0))))","v":0}]
[null,"同僚からのサポート",null,null,null,{"$f":"VLOOKUP(計算シート!BY39,K49:L53,2)","v":{"$error":"#N/A"}},null,"条件１",null,"Ａが１１点以下",null,null,null,null,4,"やや低い／少ない",null,null,null,null,null,null,null,null,null,null,null,null,null,null,null,null,null,null,{"$f":"IF(評価シート!$B$3=\"\",\"\",VLOOKUP(評価シート!$B$3,記録シート!$B$5:$AW$205,39))","v":0},null,null,null,null,null,null,null,null,null,null,null,null,null,null,null,null,null,null,null,null,null,null,null,null,null,null,null,null,null,null,null,null,null,null,null,null,{"$f":"IF(チェックシート!L24=\"〇\",1,IF(チェックシート!M24=\"〇\",2,IF(チェックシート!N24=\"〇\",3,IF(チェックシート!O24=\"〇\",4,0))))","v":0},16,null,"不眠",null,"判定",null,"男","女",null,"男",1,"ー",2,3,4,null,1,2,3,4,{"$f":"IF(チェックシート!L24=\"〇\",CK25,IF(チェックシート!M24=\"〇\",CL25,IF(チェックシート!N24=\"〇\",CM25,IF(チェックシート!O24=\"〇\",CN25,0))))","v":0}]
[null,null,null,null,null,null,null,"条件２",null,"Ａが１６点以下、かつＢ＋Ｃが８点以下",null,null,null,null,5,"低い／少ない",null,null,null,null,null,null,null,null,null,null,null,null,null,null,null,null,null,null,{"$f":"IF(評価シート!$B$3=\"\",\"\",VLOOKUP(評価シート!$B$3,記録シート!$B$5:$AW$205,40))","v":0},null,null,null,null,null,null,null,null,null,null,null,null,null,null,null,null,null,null,null,null,null,null,null,null,null,null,null,null,null,null,null,null,null,null,null,null,{"$f":"IF(チェックシート!L25=\"〇\",1,IF(チェックシート!M25=\"〇\",2,IF(チェックシート!N25=\"〇\",3,IF(チェックシート!O25=\"〇\",4,0))))","v":0},27,null,{"$f":"BT27","v":0},null,{"$f":"IF($CB$6=\"男\",CA26,CB26)","v":{"$error":"#N/A"}},null,{"$f":"IF(BW26>=CI25,1,IF(BW26>=CH25,2,IF(BW26>=CG25,3,IF(BW26>=CE25,5,5))))","v":5},{"$f":"IF(BW26>=CI26,1,IF(BW26>=CH26,2,IF(BW26>=CG26,3,IF(BW26>=CE26,5,5))))","v":5},null,"女",1,"ー",2,3,4,null,1,2,3,4,{"$f":"IF(チェックシート!L25=\"〇\",CK26,IF(チェックシート!M25=\"〇\",CL26,IF(チェックシート!N25=\"〇\",CM26,IF(チェックシート!O25=\"〇\",CN26,0))))","v":0}]
[null,null,null,null,null,null,null,null,null,null,null,null,null,null,null,null,null,null,null,null,null,null,null,null,null,null,null,null,null,null,null,null,null,null,{"$f":"IF(評価シート!$B$3=\"\",\"\",VLOOKUP(評価シート!$B$3,記録シート!$B$5:$AW$205,41))","v":0},null,null,null,null,null,null,null,null,null,null,null,null,null,null,null,null,null,null,null,null,null,null,null,null,null,null,null,null,null,null,null,null,null,null,null,null,{"$f":"IF(チェックシート!L26=\"〇\",1,IF(チェックシート!M26=\"〇\",2,IF(チェックシート!N26=\"〇\",3,IF(チェックシート!O26=\"〇\",4,0))))","v":0},29,null,null,null,null,null,null,null,null,null,null,null,null,null,null,null,1,2,3,4,{"$f":"IF(チェックシート!L26=\"〇\",CK27,IF(チェックシート!M26=\"〇\",CL27,IF(チェックシート!N26=\"〇\",CM27,IF(チェックシート!O26=\"〇\",CN27,0))))","v":0}]
[null,"あなたのストレスの程度について",null,null,null,"ストレスチェックの結果を以下の通りお知らせします。",null,null,null,null,null,null,null,null,null,null,null,null,null,null,null,null,null,null,null,null,null,null,null,null,null,null,null,null,{"$f":"IF(評価シート!$B$3=\"\",\"\",VLOOKUP(評価シート!$B$3,記録シート!$B$5:$AW$205,42))","v":0},null,null,null,null,null,null,null,null,null,null,null,null,null,null,null,null,null,null,null,null,null,null,null,null,null,null,null,null,null,null,null,null,null,null,null,null,{"$f":"PRODUCT(BT17:BT27)","v":0},"入力判定",null,null,null,null,null,null,null,null,null,null,null,null,null,null,null,null,null,null,null,{"$f":"IF(チェックシート!L27=\"〇\",CK28,IF(チェックシート!M27=\"〇\",CL28,IF(チェックシート!N27=\"〇\",CM28,IF(チェックシート!O27=\"〇\",CN28,\"\"))))","v":""}]
[null,"評価基準１による判定",null,null,"結果",{"$f":"計算シート!CQ10","v":"-"},null,null,null,null,null,null,null,null,"A>=22",{"$f":"IF(評価シート!L11>=22,1,0)","v":0},"A>=27",{"$f":"IF(評価シート!L11>=27,1,0)","v":0},null,null,null,"【心身のストレス反応】",null,null,{"$f":"IF(P29+R29=0,\"問題なく、\",IF(P29+R29=1,\"少し高く、\",\"かなり高く、\"))","v":"問題なく、"},null,{"$f":"IF(P29+R29=P30+R30,\"も\",\"は\")","v":"も"},null,null,null,null,null,null,null,{"$f":"IF(評価シート!$B$3=\"\",\"\",VLOOKUP(評価シート!$B$3,記録シート!$B$5:$AW$205,43))","v":0},null,null,null,null,null,null,null,null,null,null,null,null,null,null,null,null,null,null,null,null,null,null,null,null,null,null,null,null,null,null,null,null,null,null,null,null,null,null,null,null,null,null,null,null,null,null,null,null,null,null,null,null,null,null,null,null,null,{"$f":"IF(チェックシート!L28=\"〇\",CK29,IF(チェックシート!M28=\"〇\",CL29,IF(チェックシート!N28=\"〇\",CM29,IF(チェックシート!O28=\"〇\",CN29,\"\"))))","v":""}]
[null,"評価基準２による判定",null,null,"結果",{"$f":"計算シート!CB43","v":{"$error":"#N/A"}},null,null,null,null,null,null,null,null,"B>=17",{"$f":"IF(評価シート!L12>=17,1,0)","v":0},"B>=19",{"$f":"IF(評価シート!L12>=19,1,0)","v":0},null,null,null,"【仕事のストレス要因】",null,null,{"$f":"IF(P30+R30=0,\"問題なく、\",IF(P30+R30=1,\"少し高く、\",\"かなり高く。\"))","v":"問題なく、"},null,{"$f":"IF(P30+R30=P31+R31,\"も\",\"は\")","v":"も"},null,null,null,null,null,null,null,null,null,null,null,null,null,null,null,null,null,null,null,null,null,null,null,null,null,null,null,null,null,null,null,null,null,null,null,null,null,null,null,null,null,null,null,null,null,null,null,null,null,null,null,null,null,null,null,null,null,null,null,null,null,null,null,null,null,{"$f":"IF(チェックシート!L29=\"〇\",CK30,IF(チェックシート!M29=\"〇\",CL30,IF(チェックシート!N29=\"〇\",CM30,IF(チェックシート!O29=\"〇\",CN30,\"\"))))","v":""}]
[null,"※評価基準１・２による判定の両方あるいはいずれかが「高ストレス状態」であった場合、「高ストレス者」に該当します。",null,null,null,null,null,null,null,null,null,null,null,null,"C>=17",{"$f":"IF(評価シート!L13>=17,1,0)","v":0},"C>=19",{"$f":"IF(評価シート!L13>=19,1,0)","v":0},null,null,null,"【周囲からのサポート】",null,null,{"$f":"IF(P31+R31=0,\"比較的ある\",IF(P31+R31=1,\"あまり受けていない\",\"ほとんど受けていない\"))","v":"比較的ある"},null,null,null,null,null,null,null,null,null,null,null,null,null,null,null,null,null,null,null,null,null,null,null,null,null,null,null,null,null,null,null,null,null,null,null,null,null,null,null,null,null,null,null,null,null,null,null,null,null,null,null,null,null,null,null,null,null,null,null,null,null,null,null,"【周囲からのサポート】",null,null,null,"採点"]
[null,null,null,null,null,null,null,null,null,null,null,null,null,null,null,null,null,null,null,null,null,null,null,null,{"$f":"IF(SUM(P29:P31)=0,O33&IF(S21=\"\",\"。\",\"が、\"&S21&\"ついては見直しが必要かもしれません。\"),IF(SUM(R29:R31)>=1,O35,O34))","v":"今の生活のままで当面は良いと思われますが、疲労感と不安感と抑うつ感と食欲不振と不眠と心理的な仕事の負担と上司との対話不足と仕事の調整面の負担と同僚との対話不足については見直しが必要かもしれません。"},null,null,null,null,null,null,null,null,null,null,null,null,null,null,null,null,null,null,null,null,null,null,null,null,null,null,null,null,null,null,null,null,null,null,null,null,null,null,null,null,null,null,null,null,null,null,null,null,null,"【ストレス反応に影響を与える他の因子】"]
[null,null,null,null,null,null,null,null,null,null,null,null,null,null,"今の生活のままで当面は良いと思われます",null,null,null,null,null,null,null,null,null,null,null,null,null,null,null,null,null,null,null,null,null,null,null,null,null,null,null,null,null,null,null,null,null,null,null,null,null,null,null,null,null,null,null,null,null,null,null,null,null,null,null,null,null,null,null,null,{"$f":"IF(チェックシート!L32=\"〇\",1,IF(チェックシート!M32=\"〇\",2,IF(チェックシート!N32=\"〇\",3,IF(チェックシート!O32=\"〇\",4,0))))","v":0},1,null,"上司からのサポート",null,"判定",null,"男","女",null,"男",4,6,8,10,"ー",null,1,2,3,4,{"$f":"IF(チェックシート!L32=\"〇\",CK33,IF(チェックシート!M32=\"〇\",CL33,IF(チェックシート!N32=\"〇\",CM33,IF(チェックシート!O32=\"〇\",CN33,0))))","v":0}]
[null,null,null,null,null,null,null,null,null,null,null,null,null,null,{"$f":"\"多少ストレスを感じはじめていますので、生活リズムを整え、それでも負担を感じる場合は上司や周囲に早めにご相談下さい。\"&IF(S21=\"\",\"\",\"とくに、\"&S21&\"ついては今から改善が必要かもしれません。\")","v":"多少ストレスを感じはじめていますので、生活リズムを整え、それでも負担を感じる場合は上司や周囲に早めにご相談下さい。とくに、疲労感と不安感と抑うつ感と食欲不振と不眠と心理的な仕事の負担と上司との対話不足と仕事の調整面の負担と同僚との対話不足については今から改善が必要かもしれません。"},null,null,null,null,null,null,null,null,null,null,null,null,null,null,null,null,null,null,null,null,null,null,null,null,null,null,null,null,null,null,null,null,null,null,null,null,null,null,null,null,null,null,null,null,null,null,null,null,null,null,null,null,null,null,null,null,{"$f":"IF(チェックシート!L33=\"〇\",1,IF(チェックシート!M33=\"〇\",2,IF(チェックシート!N33=\"〇\",3,IF(チェックシート!O33=\"〇\",4,0))))","v":0},2,null,{"$f":"15-BT33-BT38-BT43","v":15},null,{"$f":"IF($CB$6=\"男\",CA34,CB34)","v":{"$error":"#N/A"}},null,{"$f":"IF(BW34<=CE33,1,IF(BW34<=CF33,2,IF(BW34<=CG33,3,IF(BW34<=CH33,4,5))))","v":5},{"$f":"IF(BW34<=CE34,1,IF(BW34<=CF34,2,IF(BW34<=CG34,3,IF(BW34<=CH34,4,5))))","v":5},null,"女",3,5,7,10,"ー",null,1,2,3,4,{"$f":"IF(チェックシート!L33=\"〇\",CK34,IF(チェックシート!M33=\"〇\",CL34,IF(チェックシート!N33=\"〇\",CM34,IF(チェックシート!O33=\"〇\",CN34,0))))","v":0}]
[null,null,null,null,null,null,null,null,null,null,null,null,null,null,{"$f":"\"ひとりで抱え込まず、上司や周囲に相談することも考えましょう。また、仕事のＯＮ・ＯＦＦの切り替えをしっかり行いましょう。\"&S21&\"ついては要改善事項です。\"","v":"ひとりで抱え込まず、上司や周囲に相談することも考えましょう。また、仕事のＯＮ・ＯＦＦの切り替えをしっかり行いましょう。疲労感と不安感と抑うつ感と食欲不振と不眠と心理的な仕事の負担と上司との対話不足と仕事の調整面の負担と同僚との対話不足については要改善事項です。"},null,null,null,null,null,null,null,null,null,null,null,null,null,null,null,null,null,null,null,{"$f":"IF(評価シート!$B$3=\"\",\"\",VLOOKUP(評価シート!$B$3,記録シート!$B$5:$AW$205,44))","v":0},null,null,null,null,null,null,null,null,null,null,null,null,null,null,null,null,null,null,null,null,null,null,null,null,null,null,null,null,null,null,null,null,null,null,null,null,{"$f":"PRODUCT(BT33:BT34)","v":0},"入力判定"]
[null,null,null,null,null,null,null,null,null,null,null,null,null,null,null,null,null,null,null,null,null,null,null,null,null,null,null,null,null,null,null,null,null,null,{"$f":"IF(評価シート!$B$3=\"\",\"\",VLOOKUP(評価シート!$B$3,記録シート!$B$5:$AW$205,45))","v":0}]
[]
[null,null,null,null,null,null,null,null,null,null,null,null,null,null,null,null,null,null,null,null,null,null,null,null,null,null,null,null,null,null,null,null,null,null,null,null,null,null,null,null,null,null,null,null,null,null,null,null,null,null,null,null,null,null,null,null,null,null,null,null,null,null,null,null,null,null,null,null,null,null,null,{"$f":"IF(チェックシート!L37=\"〇\",1,IF(チェックシート!M37=\"〇\",2,IF(チェックシート!N37=\"〇\",3,IF(チェックシート!O37=\"〇\",4,0))))","v":0},4,null,"同僚からのサポート",null,"判定",null,"男","女",null,"男",5,7,9,11,"ー",null,1,2,3,4,{"$f":"IF(チェックシート!L37=\"〇\",CK38,IF(チェックシート!M37=\"〇\",CL38,IF(チェックシート!N37=\"〇\",CM38,IF(チェックシート!O37=\"〇\",CN38,0))))","v":0}]
[null,null,null,null,null,null,null,null,null,null,null,null,null,null,null,null,null,null,null,null,null,null,null,null,null,null,null,null,null,null,null,null,null,null,null,null,null,null,null,null,null,null,null,null,null,null,null,null,null,null,null,null,null,null,null,null,null,null,null,null,null,null,null,null,null,null,null,null,null,null,null,{"$f":"IF(チェックシート!L38=\"〇\",1,IF(チェックシート!M38=\"〇\",2,IF(チェックシート!N38=\"〇\",3,IF(チェックシート!O38=\"〇\",4,0))))","v":0},5,null,{"$f":"15-BT34-BT39-BT44","v":15},null,{"$f":"IF($CB$6=\"男\",CA39,CB39)","v":{"$error":"#N/A"}},null,{"$f":"IF(BW39<=CE38,1,IF(BW39<=CF38,2,IF(BW39<=CG38,3,IF(BW39<=CH38,4,5))))","v":5},{"$f":"IF(BW39<=CE39,1,IF(BW39<=CF39,2,IF(BW39<=CG39,3,IF(BW39<=CH39,4,5))))","v":5},null,"女",5,7,9,11,"ー",null,1,2,3,4,{"$f":"IF(チェックシート!L38=\"〇\",CK39,IF(チェックシート!M38=\"〇\",CL39,IF(チェックシート!N38=\"〇\",CM39,IF(チェックシート!O38=\"〇\",CN39,0))))","v":0}]
[null,null,null,null,null,null,null,null,null,null,null,null,null,null,null,null,null,null,null,null,null,null,null,null,null,null,null,null,null,null,null,null,null,null,{"$f":"IF(評価シート!$B$3=\"\",\"\",VLOOKUP(評価シート!$B$3,記録シート!$B$5:$AW$205,46))","v":0},null,null,null,null,null,null,null,null,null,null,null,null,null,null,null,null,null,null,null,null,null,null,null,null,null,null,null,null,null,null,null,null,null,null,null,null,{"$f":"PRODUCT(BT38:BT39)","v":0},"入力判定"]
[null,null,null,null,null,null,null,null,null,null,null,null,null,null,null,null,null,null,null,null,null,null,null,null,null,null,null,null,null,null,null,null,null,null,{"$f":"IF(評価シート!$B$3=\"\",\"\",VLOOKUP(評価シート!$B$3,記録シート!$B$5:$AW$205,47))","v":0}]
[null,null,null,null,null,null,null,null,null,null,null,null,null,null,null,null,null,null,null,null,null,null,null,null,null,null,null,null,null,null,null,null,null,null,null,null,null,null,null,null,null,null,null,null,null,null,null,null,null,null,null,null,null,null,null,null,null,null,null,null,null,null,null,null,null,null,null,null,null,null,null,null,null,null,{"$f":"CK16","v":"【心身のストレス反応】"},null,null,null,null,"評価基準２による判定"]
[null,null,null,null,null,null,null,null,null,null,null,null,null,null,null,null,null,null,null,null,null,null,null,null,null,null,null,null,null,null,null,null,null,null,null,null,null,null,null,null,null,null,null,null,null,null,null,null,null,null,null,null,null,null,null,null,null,null,null,null,null,null,null,null,null,null,null,null,null,null,null,{"$f":"IF(チェックシート!L42=\"〇\",1,IF(チェックシート!M42=\"〇\",2,IF(チェックシート!N42=\"〇\",3,IF(チェックシート!O42=\"〇\",4,0))))","v":0},7,null,{"$f":"CC16","v":{"$error":"#N/A"}},{"$f":"CD16","v":"１１点以下は高ストレス"},null,null,null,{"$f":"IF(CC16<=11,\"高ストレス状態\",IF(AND(BY49<=8,CC16<=16),\"高ストレス状態\",\"-\"))","v":{"$error":"#N/A"}},null,null,null,null,null,null,null,null,1,2,3,4,{"$f":"IF(チェックシート!L42=\"〇\",CK43,IF(チェックシート!M42=\"〇\",CL43,IF(チェックシート!N42=\"〇\",CM43,IF(チェックシート!O42=\"〇\",CN43,0))))","v":0}]
[null,null,null,null,null,null,null,null,null,null,null,null,null,null,null,null,null,null,null,null,null,null,null,null,null,null,null,null,null,null,null,null,null,null,null,null,null,null,null,null,null,null,null,null,null,null,null,null,null,null,null,null,null,null,null,null,null,null,null,null,null,null,null,null,null,null,null,null,null,null,null,{"$f":"IF(チェックシート!L43=\"〇\",1,IF(チェックシート!M43=\"〇\",2,IF(チェックシート!N43=\"〇\",3,IF(チェックシート!O43=\"〇\",4,0))))","v":0},8,null,null,null,null,null,null,null,null,null,null,null,null,null,null,null,1,2,3,4,{"$f":"IF(チェックシート!L43=\"〇\",CK44,IF(チェックシート!M43=\"〇\",CL44,IF(チェックシート!N43=\"〇\",CM44,IF(チェックシート!O43=\"〇\",CN44,0))))","v":0}]
[null,null,null,null,null,null,null,null,null,null,null,null,null,null,null,null,null,null,null,null,null,null,null,null,null,null,null,null,null,null,null,null,null,null,{"$f":"IF(評価シート!$B$3=\"\",\"\",VLOOKUP(評価シート!$B$3,記録シート!$B$5:$AX$205,48))","v":0},null,null,null,null,null,null,null,null,null,null,null,null,null,null,null,null,null,null,null,null,null,null,null,null,null,null,null,null,null,null,null,null,null,null,null,null,{"$f":"PRODUCT(BT43:BT44)*BT40*BT35","v":0},"入力判定",null,"【仕事のストレス要因】"]
[null,null,null,null,null,null,null,null,null,null,null,null,null,null,null,null,null,null,null,null,null,null,null,null,null,null,null,null,null,null,null,null,null,null,{"$f":"IF(評価シート!$B$3=\"\",\"\",VLOOKUP(評価シート!$B$3,記録シート!$B$5:$AX$205,49))","v":0},null,null,null,null,null,null,null,null,null,null,null,null,null,null,null,null,null,null,null,null,null,null,null,null,null,null,null,null,null,null,null,null,null,null,null,null,null,null,null,{"$f":"BY9+BY11","v":{"$error":"#N/A"}}]
[null,null,null,null,null,null,null,null,null,null,null,null,null,null,null,null,null,null,null,null,null,null,null,null,null,null,null,null,null,null,null,null,null,null,null,null,null,null,null,null,null,null,null,null,null,null,null,null,null,null,null,null,null,null,null,null,null,null,null,null,null,null,null,null,null,null,null,null,null,null,null,null,null,null,"＋"]
[null,null,null,null,null,null,null,null,null,null,null,null,null,null,null,null,null,null,null,null,null,null,null,null,null,null,null,null,null,null,null,null,null,null,null,null,null,null,null,null,null,null,null,null,null,null,null,null,null,null,null,null,null,null,null,null,null,null,null,null,null,null,null,null,null,null,null,null,null,null,null,null,null,null,"【周囲からのサポート】"]
[null,null,null,null,null,null,null,null,null,null,1,"高い／多い",null,null,null,null,null,null,null,null,null,null,null,null,null,null,null,null,null,null,null,null,null,null,null,null,null,null,null,null,null,null,null,null,null,null,null,null,null,null,null,null,null,null,null,null,null,null,null,null,null,null,null,null,null,null,null,null,null,null,null,{"$f":"BT45*BT28*BT14","v":0},"最終判定",null,{"$f":"BY39+BY34","v":{"$error":"#N/A"}},"＝",{"$f":"BW46+BW49","v":{"$error":"#N/A"}},"合計が８点以下でかつ、心身のストレス反応が１６点以下は高ストレス"]
[null,null,null,null,null,null,null,null,null,null,2,"やや高い／多い"]
[null,null,null,null,null,null,null,null,null,null,3,"普通"]
[null,null,null,null,null,null,null,null,null,null,4,"やや低い／少ない"]
[null,null,null,null,null,null,null,null,null,null,5,"低い／少ない"]

{"sheet":"記録シート","index":4,"n_rows":205,"n_cols":50,"rows_kept":205,"cut":false,"hidden":true,"merged":[[2,1,2,4],[2,26,2,49],[2,24,2,25],[2,5,2,9],[2,10,2,11],[2,12,2,13],[2,14,2,18],[2,19,2,23]]}
["初期化",null,null,null,null,{"$f":"IF(SUM(F6:F205)=0,0,6-AVERAGE(F6:F205))","v":0},0,0,0,0,0,0,0,0]
[null,1,2,3,4,5,6,7,8,9,10,11,12,13,14,15,16,17,18,19,20,21,22,23,24,25,26,27,28,29,30,31,32,33,34,35,36,37,38,39,40,41,42,43,44,45,46,47,48,49]
[null,"基本情報",null,null,null,"【心身のストレス反応に関する項目】",null,null,null,null,"【仕事のストレスの要因に関する項目】",null,"【周囲のサポートに関する項目】",null,"評価基準１による計算",null,null,null,null,"評価基準２による計算",null,null,null,null,"判定",null,"入　　力　　内　　容"]
[]
[null,"番号","氏名","フリガナ","日付","疲労感","不安感","抑うつ感","食欲不振","不眠","心理的な仕事の負担","仕事のコントロール度","上司からのサポート","同僚からのサポート","Ａ","Ｂ","Ｃ","Ｂ＋Ｃ","Ａ＋Ｂ＋Ｃ","Ａ","Ｂ","Ｃ","Ｂ＋Ｃ","Ａ＋Ｂ＋Ｃ","評価１","評価２","性別","非常にたくさんの仕事をしなければならない","時間内に仕事が処理しきれない","一生懸命働かなければならない","自分のペースで仕事ができる","自分で仕事の順番・やり方を決める事ができる","職場の仕事の砲身に自分の意見を反映できる","ひどく疲れた","へとへとだ","だるい","気がはりつめている","不安だ","落ち着かない","ゆううつだ","何をするのも面倒だ","気分が晴れない","食欲がない","よく眠れない","上司","職場の同僚","上司","職場の同僚","上司","職場の同僚"]
[null,{"$f":"ROW()-5","v":1}]
[null,2]
[null,3]
[null,4]
[null,5]
[null,6]
[null,7]
[null,8]
[null,9]
[null,10]
[null,11]
[null,12]
[null,13]
[null,14]
[null,15]
[null,16]
[null,17]
[null,18]
[null,19]
[null,20]
[null,21]
[null,22]
[null,23]
[null,24]
[null,25]
[null,26]
[null,27]
[null,28]
[null,29]
[null,30]
[null,31]
[null,32]
[null,{"$f":"ROW()-5","v":33}]
[null,34]
[null,35]
[null,36]
[null,37]
[null,38]
[null,39]
[null,40]
[null,41]
[null,42]
[null,43]
[null,44]
[null,45]
[null,46]
[null,47]
[null,48]
[null,49]
[null,50]
[null,51]
[null,52]
[null,53]
[null,54]
[null,55]
[null,56]
[null,57]
[null,58]
[null,59]
[null,60]
[null,61]
[null,62]
[null,63]
[null,64]
[null,{"$f":"ROW()-5","v":65}]
[null,66]
[null,67]
[null,68]
[null,69]
[null,70]
[null,71]
[null,72]
[null,73]
[null,74]
[null,75]
[null,76]
[null,77]
[null,78]
[null,79]
[null,80]
[null,81]
[null,82]
[null,83]
[null,84]
[null,85]
[null,86]
[null,87]
[null,88]
[null,89]
[null,90]
[null,91]
[null,92]
[null,93]
[null,94]
[null,95]
[null,96]
[null,{"$f":"ROW()-5","v":97}]
[null,98]
[null,99]
[null,100]
[null,101]
[null,102]
[null,103]
[null,104]
[null,105]
[null,106]
[null,107]
[null,108]
[null,109]
[null,110]
[null,111]
[null,112]
[null,113]
[null,114]
[null,115]
[null,116]
[null,117]
[null,118]
[null,119]
[null,120]
[null,121]
[null,122]
[null,123]
[null,124]
[null,125]
[null,126]
[null,127]
[null,128]
[null,{"$f":"ROW()-5","v":129}]
[null,130]
[null,131]
[null,132]
[null,133]
[null,134]
[null,135]
[null,136]
[null,137]
[null,138]
[null,139]
[null,140]
[null,141]
[null,142]
[null,143]
[null,144]
[null,145]
[null,146]
[null,147]
[null,148]
[null,149]
[null,150]
[null,151]
[null,152]
[null,153]
[null,154]
[null,155]
[null,156]
[null,157]
[null,158]
[null,159]
[null,160]
[null,{"$f":"ROW()-5","v":161}]
[null,162]
[null,163]
[null,164]
[null,165]
[null,166]
[null,167]
[null,168]
[null,169]
[null,170]
[null,171]
[null,172]
[null,173]
[null,174]
[null,175]
[null,176]
[null,177]
[null,178]
[null,179]
[null,180]
[null,181]
[null,182]
[null,183]
[null,184]
[null,185]
[null,186]
[null,187]
[null,188]
[null,189]
[null,190]
[null,191]
[null,192]
[null,{"$f":"ROW()-5","v":193}]
[null,194]
[null,195]
[null,196]
[null,197]
[null,198]
[null,199]
[null,200]

{"sheet":"評価シート","index":5,"n_rows":51,"n_cols":34,"rows_kept":51,"cut":false,"hidden":true,"merged":[[33,1,36,12],[19,32,20,32],[19,33,20,33],[14,4,14,5],[18,4,18,5],[19,4,19,5],[19,30,20,30],[46,11,46,12],[41,1,42,12],[44,1,45,12],[19,31,20,31],[2,2,2,3],[13,4,13,5],[28,5,28,6],[29,5,29,6],[23,4,23,5],[24,4,24,5],[6,11,6,12],[7,18,7,19],[7,11,7,12],[8,14,9,19],[7,30,7,33],[39,1,39,12],[1,2,1,3],[10,4,10,5],[11,4,11,5],[12,4,12,5],[6,1,7,8],[9,30,10,30],[9,31,10,31],[7,26,7,29],[6,31,6,33],[9,32,10,32],[9,33,10,33]]}
[]
[null,null,"対象者"]
[null,1,{"$f":"IF($B$3=\"\",\"\",VLOOKUP($B$3,記録シート!$B$5:$AV$205,2))","v":0},null,"単票印刷",null,null,null,null,"～",null,null,"連続印刷",null,"全シート表示",null,"隠す"]
[]
[]
[]
[null,"ストレスチェックの結果通知書",null,null,null,null,null,null,null,null,null,null,null,null,null,null,null,null,null,null,null,null,"職業性ストレス簡易調査票（簡略版２３項目）",null,null,null,null,null,null,"実施日",null,{"$f":"IF(B3=\"\",\"\",VLOOKUP(B3,記録シート!B5:AX205,4))","v":"00:00:00"}]
[null,null,null,null,null,null,null,null,null,null,"氏名",{"$f":"IF($B$3=\"\",\"\",VLOOKUP($B$3,記録シート!$B$5:$AV$205,2))","v":0},null,null,null,null,null,"氏名",{"$f":"L8","v":0},null,null,null,null,null,null,null,"氏名",null,null,null,{"$f":"L8","v":0}]
[null,null,null,null,null,null,null,null,null,null,null,null,null,null,"あなたのストレスプロフィール",null,null,null,null,null,null,"Ａ．あなたの仕事について伺います。もっともあてはまるものを選択してください。"]
[null,"【心身に感じている負担感・ストレス】",null,null,null,null,null,"評価基準１による計算",null,null,null,null,null,null,null,null,null,null,null,null,null,null,null,null,null,null,null,null,null,null,"そうだ","まあ\nそうだ","やや\nちがう","ちがう"]
[null,"疲労感",null,null,{"$f":"IF($B$3=\"\",\"\",VLOOKUP(VLOOKUP($B$3,記録シート!$B$5:$AV$205,5),計算シート!O22:P26,2))","v":{"$error":"#N/A"}},null,null,"Ａ","【心身のストレス反応】",null,null,{"$f":"IF($B$3=\"\",\"\",VLOOKUP($B$3,記録シート!$B$5:$AV$205,14))","v":0},"点"]
[null,"不安感",null,null,{"$f":"IF($B$3=\"\",\"\",VLOOKUP(VLOOKUP($B$3,記録シート!$B$5:$AV$205,6),計算シート!O22:P26,2))","v":{"$error":"#N/A"}},null,null,"Ｂ","【仕事のストレス要因】",null,null,{"$f":"IF($B$3=\"\",\"\",VLOOKUP($B$3,記録シート!$B$5:$AV$205,15))","v":0},"点",null,"【心身に感じている負担感・ストレス】",null,null,null,null,null,null,1,"非常にたくさんの仕事をしなければならない",null,null,null,null,null,null,null,{"$f":"IF(計算シート!AI9=1,\"〇\",\"\")","v":""},{"$f":"IF(計算シート!AI9=2,\"〇\",\"\")","v":""},{"$f":"IF(計算シート!AI9=3,\"〇\",\"\")","v":""},{"$f":"IF(計算シート!AI9=4,\"〇\",\"\")","v":""}]
[null,"抑うつ感",null,null,{"$f":"IF($B$3=\"\",\"\",VLOOKUP(VLOOKUP($B$3,記録シート!$B$5:$AV$205,7),計算シート!O22:P26,2))","v":{"$error":"#N/A"}},null,null,"Ｃ","【周囲からのサポート】",null,null,{"$f":"IF($B$3=\"\",\"\",VLOOKUP($B$3,記録シート!$B$5:$AV$205,16))","v":0},"点",null,null,null,null,null,null,null,null,2,"時間内に仕事が処理しきれない",null,null,null,null,null,null,null,{"$f":"IF(計算シート!AI10=1,\"〇\",\"\")","v":""},{"$f":"IF(計算シート!AI10=2,\"〇\",\"\")","v":""},{"$f":"IF(計算シート!AI10=3,\"〇\",\"\")","v":""},{"$f":"IF(計算シート!AI10=4,\"〇\",\"\")","v":""}]
[null,"食欲不振",null,null,{"$f":"IF($B$3=\"\",\"\",VLOOKUP(VLOOKUP($B$3,記録シート!$B$5:$AV$205,8),計算シート!O22:P26,2))","v":{"$error":"#N/A"}},null,null,null,"Ｂ＋Ｃ",null,null,{"$f":"IF($B$3=\"\",\"\",VLOOKUP($B$3,記録シート!$B$5:$AV$205,17))","v":0},"点",null,null,null,null,null,null,null,null,3,"一生懸命働かなければならない",null,null,null,null,null,null,null,{"$f":"IF(計算シート!AI11=1,\"〇\",\"\")","v":""},{"$f":"IF(計算シート!AI11=2,\"〇\",\"\")","v":""},{"$f":"IF(計算シート!AI11=3,\"〇\",\"\")","v":""},{"$f":"IF(計算シート!AI11=4,\"〇\",\"\")","v":""}]
[null,"不眠",null,null,{"$f":"IF($B$3=\"\",\"\",VLOOKUP(VLOOKUP($B$3,記録シート!$B$5:$AV$205,9),計算シート!O22:P26,2))","v":{"$error":"#N/A"}},null,null,null,"Ａ＋Ｂ＋Ｃ",null,null,{"$f":"IF($B$3=\"\",\"\",VLOOKUP($B$3,記録シート!$B$5:$AV$205,18))","v":0},"点",null,null,null,null,null,null,null,null,4,"自分のペースで仕事ができる",null,null,null,null,null,null,null,{"$f":"IF(計算シート!AI12=1,\"〇\",\"\")","v":""},{"$f":"IF(計算シート!AI12=2,\"〇\",\"\")","v":""},{"$f":"IF(計算シート!AI12=3,\"〇\",\"\")","v":""},{"$f":"IF(計算シート!AI12=4,\"〇\",\"\")","v":""}]
[null,"※「高い／多い」の判定項目は改善が必要です。",null,null,null,null,null,"条件１",null,"Ａが３１点以上",null,null,null,null,null,null,null,null,null,null,null,5,"自分で仕事の順番・やり方を決める事ができる",null,null,null,null,null,null,null,{"$f":"IF(計算シート!AI13=1,\"〇\",\"\")","v":""},{"$f":"IF(計算シート!AI13=2,\"〇\",\"\")","v":""},{"$f":"IF(計算シート!AI13=3,\"〇\",\"\")","v":""},{"$f":"IF(計算シート!AI13=4,\"〇\",\"\")","v":""}]
[null,null,null,null,null,null,null,"条件２",null,"Ａが２３点以上、かつＢ＋Ｃが３９点以上",null,null,null,null,null,null,null,null,null,null,null,6,"職場の仕事の方針に自分の意見を反映できる",null,null,null,null,null,null,null,{"$f":"IF(計算シート!AI14=1,\"〇\",\"\")","v":""},{"$f":"IF(計算シート!AI14=2,\"〇\",\"\")","v":""},{"$f":"IF(計算シート!AI14=3,\"〇\",\"\")","v":""},{"$f":"IF(計算シート!AI14=4,\"〇\",\"\")","v":""}]
[null,"【仕事において感じる負担感・ストレス】"]
[null,"心理的な仕事の負担",null,null,{"$f":"IF($B$3=\"\",\"\",VLOOKUP(VLOOKUP($B$3,記録シート!$B$5:$AV$205,10),計算シート!O22:P26,2))","v":{"$error":"#N/A"}},null,null,"評価基準２による計算",null,null,null,null,null,null,null,null,null,null,null,null,null,"Ｂ．最近１ヶ月間のあなたの状態について伺います。もっともあてはまるものを選択してください。"]
[null,"仕事の調整面の負担",null,null,{"$f":"IF($B$3=\"\",\"\",VLOOKUP(VLOOKUP($B$3,記録シート!$B$5:$AV$205,11),計算シート!O22:P26,2))","v":{"$error":"#N/A"}},null,null,"Ａ","【心身のストレス反応】",null,null,{"$f":"IF($B$3=\"\",\"\",VLOOKUP($B$3,記録シート!$B$5:$AV$205,19))","v":0},"点",null,null,null,null,null,null,null,null,null,null,null,null,null,null,null,null,null,"ほとんど\nなかった","ときどき\nあった","しばしば\nあった","ほとんど\nいつも\nあった"]
[null,"※「高い／多い」の判定項目は改善が必要です。",null,null,null,null,null,"Ｂ","【仕事のストレス要因】",null,null,{"$f":"IF($B$3=\"\",\"\",VLOOKUP($B$3,記録シート!$B$5:$AV$205,20))","v":0},"点"]
[null,null,null,null,null,null,null,"Ｃ","【周囲からのサポート】",null,null,{"$f":"IF($B$3=\"\",\"\",VLOOKUP($B$3,記録シート!$B$5:$AV$205,21))","v":0},"点",null,null,null,null,null,null,null,null,7,"ひどく疲れた",null,null,null,null,null,null,null,{"$f":"IF(計算シート!AI19=1,\"〇\",\"\")","v":""},{"$f":"IF(計算シート!AI19=2,\"〇\",\"\")","v":""},{"$f":"IF(計算シート!AI19=3,\"〇\",\"\")","v":""},{"$f":"IF(計算シート!AI19=4,\"〇\",\"\")","v":""}]
[null,"【周囲のサポート力不足・親和性の問題】",null,null,null,null,null,null,"Ｂ＋Ｃ",null,null,{"$f":"IF($B$3=\"\",\"\",VLOOKUP($B$3,記録シート!$B$5:$AV$205,22))","v":0},"点",null,null,null,null,null,null,null,null,8,"へとへとだ",null,null,null,null,null,null,null,{"$f":"IF(計算シート!AI20=1,\"〇\",\"\")","v":""},{"$f":"IF(計算シート!AI20=2,\"〇\",\"\")","v":""},{"$f":"IF(計算シート!AI20=3,\"〇\",\"\")","v":""},{"$f":"IF(計算シート!AI20=4,\"〇\",\"\")","v":""}]
[null,"上司との対話不足",null,null,{"$f":"IF($B$3=\"\",\"\",VLOOKUP(VLOOKUP($B$3,記録シート!$B$5:$AV$205,12),計算シート!O22:P26,2))","v":{"$error":"#N/A"}},null,null,null,"Ａ＋Ｂ＋Ｃ",null,null,{"$f":"IF($B$3=\"\",\"\",VLOOKUP($B$3,記録シート!$B$5:$AV$205,23))","v":0},"点",null,null,null,null,null,null,null,null,9,"だるい",null,null,null,null,null,null,null,{"$f":"IF(計算シート!AI21=1,\"〇\",\"\")","v":""},{"$f":"IF(計算シート!AI21=2,\"〇\",\"\")","v":""},{"$f":"IF(計算シート!AI21=3,\"〇\",\"\")","v":""},{"$f":"IF(計算シート!AI21=4,\"〇\",\"\")","v":""}]
[null,"同僚との対話不足",null,null,{"$f":"IF($B$3=\"\",\"\",VLOOKUP(VLOOKUP($B$3,記録シート!$B$5:$AV$205,13),計算シート!O22:P26,2))","v":{"$error":"#N/A"}},null,null,"条件１",null,"Ａが１１点以下",null,null,null,null,null,null,null,null,null,null,null,10,"気がはりつめている",null,null,null,null,null,null,null,{"$f":"IF(計算シート!AI22=1,\"〇\",\"\")","v":""},{"$f":"IF(計算シート!AI22=2,\"〇\",\"\")","v":""},{"$f":"IF(計算シート!AI22=3,\"〇\",\"\")","v":""},{"$f":"IF(計算シート!AI22=4,\"〇\",\"\")","v":""}]
[null,"※「高い／多い」の判定項目は改善が必要です。",null,null,null,null,null,"条件２",null,"Ａが１６点以下、かつＢ＋Ｃが８点以下",null,null,null,null,null,null,null,null,null,null,null,11,"不安だ",null,null,null,null,null,null,null,{"$f":"IF(計算シート!AI23=1,\"〇\",\"\")","v":""},{"$f":"IF(計算シート!AI23=2,\"〇\",\"\")","v":""},{"$f":"IF(計算シート!AI23=3,\"〇\",\"\")","v":""},{"$f":"IF(計算シート!AI23=4,\"〇\",\"\")","v":""}]
[null,null,null,null,null,null,null,null,null,null,null,null,null,null,null,null,null,null,null,null,null,12,"落ち着かない",null,null,null,null,null,null,null,{"$f":"IF(計算シート!AI24=1,\"〇\",\"\")","v":""},{"$f":"IF(計算シート!AI24=2,\"〇\",\"\")","v":""},{"$f":"IF(計算シート!AI24=3,\"〇\",\"\")","v":""},{"$f":"IF(計算シート!AI24=4,\"〇\",\"\")","v":""}]
[null,"あなたのストレスの程度について",null,null,null,"ストレスチェックの結果を以下の通りお知らせします。",null,null,null,null,null,null,null,null,"【仕事において感じる負担感・ストレス】",null,null,null,null,null,null,13,"ゆううつだ",null,null,null,null,null,null,null,{"$f":"IF(計算シート!AI25=1,\"〇\",\"\")","v":""},{"$f":"IF(計算シート!AI25=2,\"〇\",\"\")","v":""},{"$f":"IF(計算シート!AI25=3,\"〇\",\"\")","v":""},{"$f":"IF(計算シート!AI25=4,\"〇\",\"\")","v":""}]
[null,"評価基準１による判定",null,null,"結果",{"$f":"IF($B$3=\"\",\"\",VLOOKUP($B$3,記録シート!$B$5:$AV$205,24))","v":0},null,null,null,null,null,null,null,null,null,null,null,null,null,null,null,14,"何をするのも面倒だ",null,null,null,null,null,null,null,{"$f":"IF(計算シート!AI26=1,\"〇\",\"\")","v":""},{"$f":"IF(計算シート!AI26=2,\"〇\",\"\")","v":""},{"$f":"IF(計算シート!AI26=3,\"〇\",\"\")","v":""},{"$f":"IF(計算シート!AI26=4,\"〇\",\"\")","v":""}]
[null,"評価基準２による判定",null,null,"結果",{"$f":"IF($B$3=\"\",\"\",VLOOKUP($B$3,記録シート!$B$5:$AV$205,25))","v":0},null,null,null,null,null,null,null,null,null,null,null,null,null,null,null,15,"気分が晴れない",null,null,null,null,null,null,null,{"$f":"IF(計算シート!AI27=1,\"〇\",\"\")","v":""},{"$f":"IF(計算シート!AI27=2,\"〇\",\"\")","v":""},{"$f":"IF(計算シート!AI27=3,\"〇\",\"\")","v":""},{"$f":"IF(計算シート!AI27=4,\"〇\",\"\")","v":""}]
[null,"※評価基準１・２による判定の両方あるいはいずれかが「高ストレス状態」であった場合、「高ストレス者」に該当します。",null,null,null,null,null,null,null,null,null,null,null,null,null,null,null,null,null,null,null,16,"食欲がない",null,null,null,null,null,null,null,{"$f":"IF(計算シート!AI28=1,\"〇\",\"\")","v":""},{"$f":"IF(計算シート!AI28=2,\"〇\",\"\")","v":""},{"$f":"IF(計算シート!AI28=3,\"〇\",\"\")","v":""},{"$f":"IF(計算シート!AI28=4,\"〇\",\"\")","v":""}]
[null,null,null,null,null,null,null,null,null,null,null,null,null,null,null,null,null,null,null,null,null,17,"よく眠れない",null,null,null,null,null,null,null,{"$f":"IF(計算シート!AI29=1,\"〇\",\"\")","v":""},{"$f":"IF(計算シート!AI29=2,\"〇\",\"\")","v":""},{"$f":"IF(計算シート!AI29=3,\"〇\",\"\")","v":""},{"$f":"IF(計算シート!AI29=4,\"〇\",\"\")","v":""}]
[null,"セルフケアのためのアドバイス"]
[null,{"$f":"\"貴方の場合、【心身のストレス反応】は\"&計算シート!Y29&\"【仕事のストレス要因】\"&計算シート!AA29&計算シート!Y30&\"【周囲からのサポート】\"&計算シート!AA30&計算シート!Y31&\"と思います。\"&計算シート!Y32","v":"貴方の場合、【心身のストレス反応】は問題なく、【仕事のストレス要因】も問題なく、【周囲からのサポート】も比較的あると思います。今の生活のままで当面は良いと思われますが、疲労感と不安感と抑うつ感と食欲不振と不眠と心理的な仕事の負担と上司との対話不足と仕事の調整面の負担と同僚との対話不足については見直しが必要かもしれません。"},null,null,null,null,null,null,null,null,null,null,null,null,null,null,null,null,null,null,null,"Ｃ．あなたのまわりの方々について伺います。もっともあてはまるものを選択してください。"]
[]
[null,null,null,null,null,null,null,null,null,null,null,null,null,null,null,null,null,null,null,null,null,"次の人たちとはどのくらい気軽に話ができますか？"]
[null,null,null,null,null,null,null,null,null,null,null,null,null,null,null,null,null,null,null,null,null,null,null,null,null,null,null,null,null,null,"非常に","かなり","多少","全くない"]
[null,null,null,null,null,null,null,null,null,null,null,null,null,null,null,null,null,null,null,null,null,18,"上司",null,null,null,null,null,null,null,{"$f":"IF(計算シート!AI35=1,\"〇\",\"\")","v":""},{"$f":"IF(計算シート!AI35=2,\"〇\",\"\")","v":""},{"$f":"IF(計算シート!AI35=3,\"〇\",\"\")","v":""},{"$f":"IF(計算シート!AI35=4,\"〇\",\"\")","v":""}]
[null,"産業医の面接指導の要否について",null,null,null,null,null,null,null,null,null,null,null,null,null,null,null,null,null,null,null,19,"職場の同僚",null,null,null,null,null,null,null,{"$f":"IF(計算シート!AI36=1,\"〇\",\"\")","v":""},{"$f":"IF(計算シート!AI36=2,\"〇\",\"\")","v":""},{"$f":"IF(計算シート!AI36=3,\"〇\",\"\")","v":""},{"$f":"IF(計算シート!AI36=4,\"〇\",\"\")","v":""}]
[null,{"$f":"IF(OR(F29=\"高ストレス状態\",F30=\"高ストレス状態\"),\"医師の面接指導を受けていただくことをお勧めします。\",\"貴方は面接指導は必要ではありません\"&IF(SUM(計算シート!P29:'計算シート'!P31)>=1,\"が、経過観察と生活改善などが必要だと思われます。\",\"。\"))","v":"貴方は面接指導は必要ではありません。"}]
[null,null,null,null,null,null,null,null,null,null,null,null,null,null,null,null,null,null,null,null,null,"あなたが困ったとき、次の人たちはどのくらい頼りになりますか？"]
[null,"面接指導を申出した場合は、ストレスチェックの結果は施設側に提供されます。また、面接指導の結果、必要に応じて就業上の措置が講じられることがあります。",null,null,null,null,null,null,null,null,null,null,null,null,null,null,null,null,null,null,null,null,null,null,null,null,null,null,null,null,"非常に","かなり","多少","全くない"]
[null,null,null,null,null,null,null,null,null,null,null,null,null,null,null,null,null,null,null,null,null,20,"上司",null,null,null,null,null,null,null,{"$f":"IF(計算シート!AI40=1,\"〇\",\"\")","v":""},{"$f":"IF(計算シート!AI40=2,\"〇\",\"\")","v":""},{"$f":"IF(計算シート!AI40=3,\"〇\",\"\")","v":""},{"$f":"IF(計算シート!AI40=4,\"〇\",\"\")","v":""}]
[null,null,null,null,null,null,null,null,null,null,null,null,null,null,"このグラフは評価基準２の判定に従ってストレスを５段階表示しています。",null,null,null,null,null,null,21,"職場の同僚",null,null,null,null,null,null,null,{"$f":"IF(計算シート!AI41=1,\"〇\",\"\")","v":""},{"$f":"IF(計算シート!AI41=2,\"〇\",\"\")","v":""},{"$f":"IF(計算シート!AI41=3,\"〇\",\"\")","v":""},{"$f":"IF(計算シート!AI41=4,\"〇\",\"\")","v":""}]
[null,"産業医による面接指導を希望される方、または医師の面接指導ではなく、管理者等による相談をご希望の方は事務所・もしくは医務室まで直接ご連絡下さい。",null,null,null,null,null,null,null,null,null,null,null,null,"このグラフにおいては数値が高いほどストレスが高いことを示します。"]
[null,null,null,null,null,null,null,null,null,null,null,null,null,null,null,null,null,null,null,null,null,"あなたの個人的な問題を相談したら、次の人たちはどのくらい聞いてくれますか？"]
[null,null,null,null,null,null,null,"ストレスチェック実施者",null,null,"産業医",null,null,null,"評価基準１はストレスを４段階に分け、男女とも平等に加点して比較検討する手法。",null,null,null,null,null,null,null,null,null,null,null,null,null,null,null,"非常に","かなり","多少","全くない"]
[null,null,null,null,null,null,null,"〒",null,null,null,null,null,null,"評価基準２はストレスを５段階に分け、基準点から減じてゆく手法。男女で評価差があります。",null,null,null,null,null,null,22,"上司",null,null,null,null,null,null,null,{"$f":"IF(計算シート!AI45=1,\"〇\",\"\")","v":""},{"$f":"IF(計算シート!AI45=2,\"〇\",\"\")","v":""},{"$f":"IF(計算シート!AI45=3,\"〇\",\"\")","v":""},{"$f":"IF(計算シート!AI45=4,\"〇\",\"\")","v":""}]
[null,null,null,null,null,null,null,"☎",null,null,null,null,null,null,null,null,null,null,null,null,null,23,"職場の同僚",null,null,null,null,null,null,null,{"$f":"IF(計算シート!AI46=1,\"〇\",\"\")","v":""},{"$f":"IF(計算シート!AI46=2,\"〇\",\"\")","v":""},{"$f":"IF(計算シート!AI46=3,\"〇\",\"\")","v":""},{"$f":"IF(計算シート!AI46=4,\"〇\",\"\")","v":""}]
[]
[null,null,null,null,null,null,null,"※産業医の部分は自由に編集できます。"]